Workbook

Sheet Program Obliczeniowy
A1: liczba drużyn: | B1: 17 | F1: ELIMINACJA | H1: …………………………… | K1: OGÓLNOPOLSKIEGO TURNIEJU BRD - GRUPA - II | AF1: test | AI1: historia | AL1: motorower | BI1: drozunowo | BJ1: drozunowo | BL1: drozunowo | BM1: drozunowo | BN1: drozunowo | BO1: drozunowo | BP1: drozunowo | BQ1: drozunowo | BR1: drozunowo | BS1: drozunowo | BT1: drozunowo | BZ1: CD | CF1: "0"test | CG1: "0"test
A2: =B1*3 -> 51 | C2: NR startowy | D2: Imię i nazwisko | E2: Szkoła | F2: Test Wiedzy | G2: m-ce | H2: Test Skrzyżowań | I2: m-ce | J2: MRD | K2: m-ce | L2: RTP | M2: m-ce | N2: Pierwsza Pomoc | O2: m-ce | P2: razem drużyna | Q2: m-ce drużyna | R2: razem indywidualnie | S2: m-ce indywidualnie | W2: G | X2: k | Y2: m | Z2: i | AF2: 0 | AI2: 0 | AO2: 0 | BA2: 0 | BI2: suma | BJ2: g | BK2: i | BL2: m | BM2: o | BN2: samoch. | BO2: k | BP2: obsl.moto | BW2: 0 | BY2: =MAX(BZ:BZ)+1 -> 4 | CE2: =MAX(CF:CF)+1 -> 11 | CF2: =MAX(CG:CG)+1 -> 10 | CI2: =MIN(CH:CH)-1 -> 1 | CJ2: 1
A3: =B1 -> 17 | B3: =IF(MOD(ROW(),3)=2,((ROW()+1)/3)-1,"") ->  | C3: =CONCATENATE(B5,"A") -> 1A | D3: SZYMON KARPOWICZ | E3: Szkoła Podstawowa nr 2 w Sokółce | F3: 16 | G3: =IF(ISBLANK(F3),"",IF(F3=0,$CE$2,CF3)) -> 9 | H3: 9 | I3: =IF(ISBLANK(H3),"",IF(H3=0,$BY$2,BZ3)) -> 2 | J3: 12 | K3: =IF(ISBLANK(J3),"",IF(J3=0,$CJ$2,CH3)) -> 4 | L3: 5 | M3: =IF(ISNUMBER(L3),VLOOKUP(L3,AL:AM,2,FALSE),"") -> 6 | N3: 11 | O3: =IF(ISBLANK(N3),"",IF(N3=0,$CF$2,CG3)) -> 7 | P3: =IF(ISNUMBER(O3),IF(ISNUMBER(O3),IF(ISNUMBER(O3),O3+G3+G4+G5+I3+I4+I5+K3+K4+K5+M3+M4+M5,""),""),"") -> 58 | Q3: =IF(ISNUMBER(P3),VLOOKUP(BQ3,BS:BT,2,FALSE),"") -> 16 | R3: =IF(ISNUMBER(G3),IF(ISNUMBER(K3),IF(ISNUMBER(M3),SUM(G3,I3,K3,M3),""),""),"") -> 21 | S3: =IF(ISNUMBER(R3),VLOOKUP(AA3,AB:AC,2,FALSE),"") -> 40 | W3: =G3 -> 9 | X3: =K3 -> 4 | Y3: =M3 -> 6 | Z3: =I3 -> 2 | AA3: =IF(ISNUMBER(R3),CONCATENATE(R3+100,W3+100,Z3+100,X3+100,Y3+100)+0,"") -> 121109102104106 | AB3: =IF(ISNUMBER(SMALL(AA:AA,ROW()-2)),SMALL(AA:AA,ROW()-2),"") -> 104101101101101 | AC3: 1 | AF3: =IF(ISNUMBER(LARGE(F:F,ROW()-2)),LARGE(F:F,ROW()-2),"") -> 24 | AG3: 1 | AI3: =IF(ISNUMBER(SMALL(J:J,ROW()-2)),SMALL(J:J,ROW()-2),"") -> 0 | AJ3: 1 | AL3: =IF(ISNUMBER(SMALL(L:L,ROW()-2)),SMALL(L:L,ROW()-2),"") -> 0 | AM3: 1 | AO3: =IF(ISNUMBER(LARGE(N:N,ROW()-2)),LARGE(N:N,ROW()-2),"") -> 18 | AP3: 1 | AR3: =IF(ISNUMBER(SMALL(#REF!,ROW()-2)),SMALL(#REF!,ROW()-2),"") ->  | AS3: 1 | AU3: =IF(#REF!,#REF!+0,) ->  | AV3: =IF(ISNUMBER(LARGE(AU:AU,ROW()-2)),LARGE(AU:AU,ROW()-2),"") ->  | AW3: 1 | AX3: =IF(ISNUMBER(AU3),VLOOKUP(AU3,AV:AW,2,FALSE),"") ->  | AZ3: =P3 -> 58 | BA3: =IF(ISNUMBER(SMALL(P:P,ROW()-2)),SMALL(P:P,ROW()-2),"") -> 23 | BB3: 1 | BC3: =IF(ISNUMBER(AZ3),VLOOKUP(AZ3,BA:BB,2,FALSE),"") -> 14 | BE3: =IF(ISNUMBER(SMALL(R:R,ROW()-2)),SMALL(R:R,ROW()-2),"") -> 4 | BF3: 1 | BI3: =P3 -> 58 | BJ3: =SUM(G3,G4,G5) -> 21 | BK3: =SUM(I3,I4,I5) -> 4 | BL3: =SUM(M3,M4,M5) -> 18 | BM3: =O3 -> 7 | BN3: =#REF! ->  | BO3: =SUM(K3,K4,K5) -> 8 | BP3: =#REF! ->  | BQ3: =IF(ISNUMBER(P3),CONCATENATE(BI3+100,BJ3+100,BK3+100,BO3+100,BL3+100,BM3+100)+0,"") -> 1.581211041e+17 | BS3: =IF(ISNUMBER(SMALL(BQ:BQ,ROW()-2)),SMALL(BQ:BQ,ROW()-2),"") -> 1.231081031e+17 | BT3: 1 | BW3: =IF(ISNUMBER(LARGE(H:H,ROW()-2)),LARGE(H:H,ROW()-2),"") -> 10 | BX3: 1 | BZ3: =VLOOKUP(H3,BW:BX,2,FALSE) -> 2 | CF3: =VLOOKUP(F3,AF:AG,2,FALSE) -> 9 | CG3: =VLOOKUP(N3,AO:AP,2,FALSE) -> 7 | CH3: =IF(ISNUMBER(J3),VLOOKUP(J3,AI:AJ,2,FALSE),"") -> 4
C4: =CONCATENATE(B5,"B") -> 1B | D4: RAFAŁ PYŁKO | F4: 17 | G4: 8 | H4: 10 | I4: =IF(ISBLANK(H4),"",IF(H4=0,$BY$2,BZ4)) -> 1 | J4: 3 | K4: =IF(ISBLANK(J4),"",IF(J4=0,$CJ$2,CH4)) -> 2 | L4: 4 | M4: 5 | R4: =IF(ISNUMBER(G4),IF(ISNUMBER(K4),IF(ISNUMBER(M4),SUM(G4,I4,K4,M4),""),""),"") -> 16 | S4: 35 | W4: =G4 -> 8 | X4: =K4 -> 2 | Y4: =M4 -> 5 | Z4: =I4 -> 1 | AA4: =IF(ISNUMBER(R4),CONCATENATE(R4+100,W4+100,Z4+100,X4+100,Y4+100)+0,"") -> 116108101102105 | AB4: =IF(ISNUMBER(SMALL(AA:AA,ROW()-2)),SMALL(AA:AA,ROW()-2),"") -> 105101101101102 | AC4: =IF(AB3<>AB4,AC3+1,AC3) -> 2 | AF4: 24 | AG4: =IF(AF3<>AF4,AG3+1,AG3) -> 1 | AI4: 0 | AJ4: =IF(AI3<>AI4,AJ3+1,AJ3) -> 1 | AL4: 0 | AM4: =IF(AL3<>AL4,AM3+1,AM3) -> 1 | AO4: 18 | AP4: =IF(AO3<>AO4,AP3+1,AP3) -> 1 | AR4: =IF(ISNUMBER(SMALL(#REF!,ROW()-2)),SMALL(#REF!,ROW()-2),"") ->  | AS4: =IF(AR3<>AR4,AS3+1,AS3) -> 1 | AW4: =IF(AV4<>0,IF(AV3<>AV4,AW3+1,AW3),"") -> 1 | BA4: 24 | BB4: =IF(BA3<>BA4,BB3+1,BB3) -> 2 | BE4: =IF(ISNUMBER(SMALL(R:R,ROW()-2)),SMALL(R:R,ROW()-2),"") -> 5 | BF4: =IF(BE3<>BE4,BF3+1,BF3) -> 2 | BS4: =IF(ISNUMBER(SMALL(BQ:BQ,ROW()-2)),SMALL(BQ:BQ,ROW()-2),"") -> 1.241091031e+17 | BT4: =IF(BS3<>BS4,BT3+1,BT3) -> 2 | BW4: 10 | BX4: =IF(BW3<>BW4,BX3+1,BX3) -> 1 | BZ4: =VLOOKUP(H4,BW:BX,2,FALSE) -> 1 | CF4: =VLOOKUP(F4,AF:AG,2,FALSE) -> 8 | CH4: =IF(ISNUMBER(J4),VLOOKUP(J4,AI:AJ,2,FALSE),"") -> 2
B5: 1 | C5: =CONCATENATE(B5,"C") -> 1C | D5: MATEUSZ ŁYSIK | F5: 21 | G5: 4 | H5: 10 | I5: =IF(ISBLANK(H5),"",IF(H5=0,$BY$2,BZ5)) -> 1 | J5: 3 | K5: 2 | L5: 7 | M5: 7 | R5: 14 | S5: 32 | W5: =G5 -> 4 | X5: =K5 -> 2 | Y5: =M5 -> 7 | Z5: 1 | AA5: 114104101102107 | AB5: =IF(ISNUMBER(SMALL(AA:AA,ROW()-2)),SMALL(AA:AA,ROW()-2),"") -> 105102101101101 | AC5: =IF(AB4<>AB5,AC4+1,AC4) -> 3 | AF5: 23 | AG5: 2 | AI5: 0 | AJ5: =IF(AI4<>AI5,AJ4+1,AJ4) -> 1 | AL5: 0 | AM5: =IF(AL4<>AL5,AM4+1,AM4) -> 1 | AO5: 17 | AP5: =IF(AO4<>AO5,AP4+1,AP4) -> 2 | AR5: =IF(ISNUMBER(SMALL(#REF!,ROW()-2)),SMALL(#REF!,ROW()-2),"") ->  | AS5: =IF(AR4<>AR5,AS4+1,AS4) -> 1 | AW5: 1 | BA5: 24 | BB5: 2 | BE5: 5 | BF5: 2 | BS5: 1.241101031e+17 | BT5: 3 | BW5: 10 | BX5: 1 | BZ5: 1 | CF5: 4 | CH5: 2
C6: =CONCATENATE(B8,"A") -> 2A | D6: NATALIA JATCZAK | E6: Szkoła Podstawowa nr 1 w Koluszkach | F6: 18 | G6: 7 | H6: 10 | I6: 1 | J6: 0 | K6: 1 | L6: 3 | M6: 4 | N6: 17 | O6: =IF(ISBLANK(N6),"",IF(N6=0,$CF$2,CG6)) -> 2 | P6: =IF(ISNUMBER(O6),IF(ISNUMBER(O6),IF(ISNUMBER(O6),O6+G6+G7+G8+I6+I7+I8+K6+K7+K8+M6+M7+M8,""),""),"") -> 26 | Q6: =IF(ISNUMBER(P6),VLOOKUP(BQ6,BS:BT,2,FALSE),"") -> 6 | R6: 13 | S6: 29 | W6: 7 | X6: 1 | Y6: 4 | Z6: 1 | AA6: 113107101101104 | AB6: 105102101101101 | AC6: 3 | AF6: 23 | AG6: 2 | AI6: 0 | AJ6: 1 | AL6: 0 | AM6: 1 | AO6: 17 | AP6: 2 | AR6: =IF(ISNUMBER(SMALL(#REF!,ROW()-2)),SMALL(#REF!,ROW()-2),"") ->  | AS6: 1 | AU6: =IF(#REF!,#REF!+0,) ->  | AW6: 1 | AX6: =IF(ISNUMBER(AU6),VLOOKUP(AU6,AV:AW,2,FALSE),"") ->  | AZ6: =P6 -> 26 | BA6: 25 | BB6: 3 | BC6: =IF(ISNUMBER(AZ6),VLOOKUP(AZ6,BA:BB,2,FALSE),"") -> 4 | BE6: 5 | BF6: 2 | BI6: =P6 -> 26 | BJ6: =SUM(G6,G7,G8) -> 11 | BK6: =SUM(I6,I7,I8) -> 3 | BL6: =SUM(M6,M7,M8) -> 6 | BM6: =O6 -> 2 | BN6: =#REF! ->  | BO6: =SUM(K6,K7,K8) -> 4 | BP6: =#REF! ->  | BQ6: =IF(ISNUMBER(P6),CONCATENATE(BI6+100,BJ6+100,BK6+100,BO6+100,BL6+100,BM6+100)+0,"") -> 1.261111031e+17 | BR6: =IF(ISNUMBER(SMALL(BQ:BQ,ROW()-2)),SMALL(BQ:BQ,ROW()-2),"") -> 1.251051031e+17 | BS6: 1.251051031e+17 | BT6: 4 | BW6: 10 | BX6: 1 | BZ6: 1 | CF6: 7 | CG6: =VLOOKUP(N6,AO:AP,2,FALSE) -> 2
C7: =CONCATENATE(B8,"B") -> 2B | D7: SZYMON GNIEWISZ | F7: 22 | G7: 3 | H7: 10 | I7: 1 | J7: 3 | K7: 2 | L7: 0 | M7: 1 | R7: 7 | S7: 7 | W7: 3 | X7: 2 | Y7: 1 | Z7: 1 | AA7: 107103101102101 | AB7: 105102101101101 | AC7: 3 | AF7: 23 | AG7: 2 | AI7: 0 | AJ7: 1 | AL7: 0 | AM7: 1 | AO7: 17 | AP7: 2 | AR7: =IF(ISNUMBER(SMALL(#REF!,ROW()-2)),SMALL(#REF!,ROW()-2),"") ->  | AS7: 1 | AW7: 1 | BA7: 25 | BB7: 3 | BE7: 5 | BF7: 2 | BS7: 1.251101041e+17 | BT7: 5 | BW7: 10 | BX7: 1 | BZ7: 1 | CF7: 3 | CH7: 2
B8: 2 | C8: =CONCATENATE(B8,"C") -> 2C | D8: JAKUB DŁUGOSZ | F8: 24 | G8: 1 | H8: 10 | I8: 1 | J8: 0 | K8: 1 | L8: 0 | M8: 1 | R8: 4 | S8: 1 | W8: 1 | X8: 1 | Y8: 1 | Z8: 1 | AA8: 104101101101101 | AB8: 105102101101101 | AC8: 3 | AF8: 23 | AG8: 2 | AI8: 0 | AJ8: 1 | AL8: 0 | AM8: 1 | AO8: 16 | AP8: 3 | AR8: =IF(ISNUMBER(SMALL(#REF!,ROW()-2)),SMALL(#REF!,ROW()-2),"") ->  | AS8: 1 | AW8: 1 | BA8: 26 | BB8: 4 | BE8: 5 | BF8: 2 | BS8: 1.261111031e+17 | BT8: 6 | BW8: 10 | BX8: 1 | BZ8: 1 | CF8: 1
C9: =CONCATENATE(B11,"A") -> 3A | D9: MALWINA BURY | E9: Zespół Szkolno-Przedszkolny w Bierzwniku | F9: 18 | G9: 7 | H9: 10 | I9: 1 | J9: 12 | K9: 4 | L9: 11 | M9: 8 | N9: 9 | O9: =IF(ISBLANK(N9),"",IF(N9=0,$CF$2,CG9)) -> 9 | P9: =IF(ISNUMBER(O9),IF(ISNUMBER(O9),IF(ISNUMBER(O9),O9+G9+G10+G11+I9+I10+I11+K9+K10+K11+M9+M10+M11,""),""),"") -> 50 | Q9: =IF(ISNUMBER(P9),VLOOKUP(BQ9,BS:BT,2,FALSE),"") -> 14 | R9: 20 | S9: =IF(ISNUMBER(R9),VLOOKUP(AA9,AB:AC,2,FALSE),"") -> 39 | W9: 7 | X9: 4 | Y9: 8 | Z9: 1 | AA9: 120107101104108 | AB9: 106102101101102 | AC9: 4 | AF9: 23 | AG9: 2 | AI9: 0 | AJ9: 1 | AL9: 0 | AM9: 1 | AO9: 15 | AP9: 4 | AR9: =IF(ISNUMBER(SMALL(#REF!,ROW()-2)),SMALL(#REF!,ROW()-2),"") ->  | AS9: 1 | AU9: =IF(#REF!,#REF!+0,) ->  | AW9: 1 | AX9: =IF(ISNUMBER(AU9),VLOOKUP(AU9,AV:AW,2,FALSE),"") ->  | AZ9: =P9 -> 50 | BA9: 27 | BB9: 5 | BC9: =IF(ISNUMBER(AZ9),VLOOKUP(AZ9,BA:BB,2,FALSE),"") -> 12 | BE9: 6 | BF9: 3 | BI9: =P9 -> 50 | BJ9: =SUM(G9,G10,G11) -> 18 | BK9: =SUM(I9,I10,I11) -> 3 | BL9: =SUM(M9,M10,M11) -> 12 | BM9: =O9 -> 9 | BN9: =#REF! ->  | BO9: =SUM(K9,K10,K11) -> 8 | BP9: =#REF! ->  | BQ9: =IF(ISNUMBER(P9),CONCATENATE(BI9+100,BJ9+100,BK9+100,BO9+100,BL9+100,BM9+100)+0,"") -> 1.501181031e+17 | BR9: =IF(ISNUMBER(SMALL(BQ:BQ,ROW()-2)),SMALL(BQ:BQ,ROW()-2),"") -> 1.271151051e+17 | BS9: 1.271151051e+17 | BT9: 7 | BW9: 10 | BX9: 1 | BZ9: 1 | CF9: 7 | CG9: =VLOOKUP(N9,AO:AP,2,FALSE) -> 9 | CH9: 4
C10: =CONCATENATE(B11,"B") -> 3B | D10: HUBERT WAJDA | F10: 19 | G10: 6 | H10: 10 | I10: 1 | J10: 0 | K10: 1 | L10: 1 | M10: 2 | R10: 10 | S10: 19 | W10: 6 | X10: 1 | Y10: 2 | Z10: 1 | AA10: 110106101101102 | AB10: 106103101101101 | AC10: 5 | AF10: 23 | AG10: 2 | AI10: 0 | AJ10: 1 | AL10: 0 | AM10: 1 | AO10: 14 | AP10: 5 | AR10: =IF(ISNUMBER(SMALL(#REF!,ROW()-2)),SMALL(#REF!,ROW()-2),"") ->  | AS10: 1 | AW10: 1 | BA10: 30 | BB10: 6 | BE10: 6 | BF10: 3 | BS10: 1.301151041e+17 | BT10: 8 | BW10: 10 | BX10: 1 | BZ10: 1 | CF10: 6
B11: 3 | C11: =CONCATENATE(B11,"C") -> 3C | D11: JĘDRZEJ WŁODARCZYK | F11: 20 | G11: 5 | H11: 10 | I11: 1 | J11: 6 | K11: 3 | L11: 1 | M11: 2 | R11: 11 | S11: 22 | W11: 5 | X11: 3 | Y11: 2 | Z11: 1 | AA11: 111105101103102 | AB11: 106103101101101 | AC11: 5 | AF11: 23 | AG11: 2 | AI11: 0 | AJ11: 1 | AL11: 0 | AM11: 1 | AO11: 14 | AP11: 5 | AR11: =IF(ISNUMBER(SMALL(#REF!,ROW()-2)),SMALL(#REF!,ROW()-2),"") ->  | AS11: 1 | AW11: 1 | BA11: 32 | BB11: 7 | BE11: 6 | BF11: 3 | BS11: 1.321141031e+17 | BT11: 9 | BW11: 10 | BX11: 1 | BZ11: 1 | CF11: 5 | CH11: 3
C12: =CONCATENATE(B14,"A") -> 4A | D12: INGA URBANIAK | E12: Szkola Podstawowa w Dąbiu | F12: 18 | G12: 7 | H12: 9 | I12: 2 | J12: 12 | K12: 4 | L12: 3 | M12: 4 | N12: 16 | O12: =IF(ISBLANK(N12),"",IF(N12=0,$CF$2,CG12)) -> 3 | P12: =IF(ISNUMBER(O12),IF(ISNUMBER(O12),IF(ISNUMBER(O12),O12+G12+G13+G14+I12+I13+I14+K12+K13+K14+M12+M13+M14,""),""),"") -> 59 | Q12: =IF(ISNUMBER(P12),VLOOKUP(BQ12,BS:BT,2,FALSE),"") -> 17 | R12: 17 | S12: 37 | W12: 7 | X12: 4 | Y12: 4 | Z12: 2 | AA12: 117107102104104 | AB12: 107103101101102 | AC12: 6 | AF12: 23 | AG12: 2 | AI12: 0 | AJ12: 1 | AL12: 0 | AM12: 1 | AO12: 14 | AP12: 5 | AR12: =IF(ISNUMBER(SMALL(#REF!,ROW()-2)),SMALL(#REF!,ROW()-2),"") ->  | AS12: 1 | AU12: =IF(#REF!,#REF!+0,) ->  | AW12: 1 | AX12: =IF(ISNUMBER(AU12),VLOOKUP(AU12,AV:AW,2,FALSE),"") ->  | AZ12: =P12 -> 59 | BA12: 33 | BB12: 8 | BC12: =IF(ISNUMBER(AZ12),VLOOKUP(AZ12,BA:BB,2,FALSE),"") -> 15 | BE12: 7 | BF12: 4 | BI12: =P12 -> 59 | BJ12: =SUM(G12,G13,G14) -> 18 | BK12: =SUM(I12,I13,I14) -> 4 | BL12: =SUM(M12,M13,M14) -> 27 | BM12: =O12 -> 3 | BN12: =#REF! ->  | BO12: =SUM(K12,K13,K14) -> 7 | BP12: =#REF! ->  | BQ12: =IF(ISNUMBER(P12),CONCATENATE(BI12+100,BJ12+100,BK12+100,BO12+100,BL12+100,BM12+100)+0,"") -> 1.591181041e+17 | BR12: =IF(ISNUMBER(SMALL(BQ:BQ,ROW()-2)),SMALL(BQ:BQ,ROW()-2),"") -> 1.331121041e+17 | BS12: 1.331121041e+17 | BT12: 10 | BW12: 10 | BX12: 1 | BZ12: 2 | CF12: 7 | CG12: =VLOOKUP(N12,AO:AP,2,FALSE) -> 3 | CH12: 4
C13: =CONCATENATE(B14,"B") -> 4B | D13: DOMINIK KAŹMIERCZAK | F13: 18 | G13: 7 | H13: 10 | I13: 1 | J13: 3 | K13: 2 | L13: 18 | M13: 12 | R13: 22 | S13: 41 | W13: 7 | X13: 2 | Y13: 12 | Z13: 1 | AA13: 122107101102112 | AB13: 107103101101102 | AC13: 6 | AF13: 22 | AG13: 3 | AI13: 0 | AJ13: 1 | AL13: 0 | AM13: 1 | AO13: 13 | AP13: 6 | AR13: =IF(ISNUMBER(SMALL(#REF!,ROW()-2)),SMALL(#REF!,ROW()-2),"") ->  | AS13: 1 | AW13: 1 | BA13: 38 | BB13: 9 | BE13: 7 | BF13: 4 | BS13: 1.381101031e+17 | BT13: 11 | BW13: 10 | BX13: 1 | BZ13: 1 | CF13: 7 | CH13: 2
B14: 4 | C14: =CONCATENATE(B14,"C") -> 4C | D14: JOACHIM KAŹMIERCZAK | F14: 21 | G14: 4 | H14: 10 | I14: 1 | J14: 0 | K14: 1 | L14: 16 | M14: 11 | R14: 17 | S14: 36 | W14: 4 | X14: 1 | Y14: 11 | Z14: 1 | AA14: 117104101101111 | AB14: 107103101102101 | AC14: 7 | AF14: 22 | AG14: 3 | AI14: 0 | AJ14: 1 | AL14: 0 | AM14: 1 | AO14: 13 | AP14: 6 | AR14: =IF(ISNUMBER(SMALL(#REF!,ROW()-2)),SMALL(#REF!,ROW()-2),"") ->  | AS14: 1 | AW14: 1 | BA14: 39 | BB14: 10 | BE14: 7 | BF14: 4 | BS14: 1.391151051e+17 | BT14: 12 | BW14: 10 | BX14: 1 | BZ14: 1 | CF14: 4
C15: =CONCATENATE(B17,"A") -> 5A | D15: PATRYK PODGÓRSKI | E15: Szkoła Podstawowa nr 3 w Krasnymstawie | F15: 21 | G15: 4 | H15: 10 | I15: 1 | J15: 0 | K15: 1 | L15: 0 | M15: 1 | N15: 14 | O15: =IF(ISBLANK(N15),"",IF(N15=0,$CF$2,CG15)) -> 5 | P15: =IF(ISNUMBER(O15),IF(ISNUMBER(O15),IF(ISNUMBER(O15),O15+G15+G16+G17+I15+I16+I17+K15+K16+K17+M15+M16+M17,""),""),"") -> 24 | Q15: =IF(ISNUMBER(P15),VLOOKUP(BQ15,BS:BT,2,FALSE),"") -> 3 | R15: 7 | S15: 9 | W15: 4 | X15: 1 | Y15: 1 | Z15: 1 | AA15: 107104101101101 | AB15: 107103102101101 | AC15: 8 | AF15: 22 | AG15: 3 | AI15: 0 | AJ15: 1 | AL15: 0 | AM15: 1 | AO15: 11 | AP15: 7 | AR15: =IF(ISNUMBER(SMALL(#REF!,ROW()-2)),SMALL(#REF!,ROW()-2),"") ->  | AS15: 1 | AU15: =IF(#REF!,#REF!+0,) ->  | AW15: 1 | AX15: =IF(ISNUMBER(AU15),VLOOKUP(AU15,AV:AW,2,FALSE),"") ->  | AZ15: =P15 -> 24 | BA15: 49 | BB15: 11 | BC15: =IF(ISNUMBER(AZ15),VLOOKUP(AZ15,BA:BB,2,FALSE),"") -> 2 | BE15: 7 | BF15: 4 | BI15: =P15 -> 24 | BJ15: =SUM(G15,G16,G17) -> 10 | BK15: =SUM(I15,I16,I17) -> 3 | BL15: =SUM(M15,M16,M17) -> 3 | BM15: =O15 -> 5 | BN15: =#REF! ->  | BO15: =SUM(K15,K16,K17) -> 3 | BP15: =#REF! ->  | BQ15: =IF(ISNUMBER(P15),CONCATENATE(BI15+100,BJ15+100,BK15+100,BO15+100,BL15+100,BM15+100)+0,"") -> 1.241101031e+17 | BR15: =IF(ISNUMBER(SMALL(BQ:BQ,ROW()-2)),SMALL(BQ:BQ,ROW()-2),"") -> 1.491101031e+17 | BS15: 1.491101031e+17 | BT15: 13 | BW15: 10 | BX15: 1 | BZ15: 1 | CF15: 4 | CG15: =VLOOKUP(N15,AO:AP,2,FALSE) -> 5
C16: =CONCATENATE(B17,"B") -> 5B | D16: KONRAD DZIEDZIC | F16: 22 | G16: 3 | H16: 10 | I16: 1 | J16: 0 | K16: 1 | L16: 0 | M16: 1 | R16: 6 | S16: 5 | W16: 3 | X16: 1 | Y16: 1 | Z16: 1 | AA16: 106103101101101 | AB16: 107104101101101 | AC16: 9 | AF16: 22 | AG16: 3 | AI16: 0 | AJ16: 1 | AL16: 0 | AM16: 1 | AO16: 11 | AP16: 7 | AR16: =IF(ISNUMBER(SMALL(#REF!,ROW()-2)),SMALL(#REF!,ROW()-2),"") ->  | AS16: 1 | AW16: 1 | BA16: 50 | BB16: 12 | BE16: 7 | BF16: 4 | BS16: 1.501181031e+17 | BT16: 14 | BW16: 10 | BX16: 1 | BZ16: 1 | CF16: 3
B17: 5 | C17: =CONCATENATE(B17,"C") -> 5C | D17: KRYSTIAN GALEWSKI | F17: 22 | G17: 3 | H17: 10 | I17: 1 | J17: 0 | K17: 1 | L17: 0 | M17: 1 | R17: 6 | S17: 5 | W17: 3 | X17: 1 | Y17: 1 | Z17: 1 | AA17: 106103101101101 | AB17: 107104101101101 | AC17: 9 | AF17: 22 | AG17: 3 | AI17: 0 | AJ17: 1 | AL17: 0 | AM17: 1 | AO17: 10 | AP17: 8 | AR17: =IF(ISNUMBER(SMALL(#REF!,ROW()-2)),SMALL(#REF!,ROW()-2),"") ->  | AS17: 1 | AW17: 1 | BA17: 52 | BB17: 13 | BE17: 7 | BF17: 4 | BS17: 1.521231031e+17 | BT17: 15 | BW17: 10 | BX17: 1 | BZ17: 1 | CF17: 3
C18: =CONCATENATE(B20,"A") -> 6A | D18: KINGA GNIDZIŃSKA | E18: Szkola Podstawowa nr 3 w Nidzicy | F18: 22 | G18: 3 | H18: 9 | I18: 2 | J18: 0 | K18: 1 | L18: 0 | M18: 1 | N18: 15 | O18: =IF(ISBLANK(N18),"",IF(N18=0,$CF$2,CG18)) -> 4 | P18: =IF(ISNUMBER(O18),IF(ISNUMBER(O18),IF(ISNUMBER(O18),O18+G18+G19+G20+I18+I19+I20+K18+K19+K20+M18+M19+M20,""),""),"") -> 25 | Q18: =IF(ISNUMBER(P18),VLOOKUP(BQ18,BS:BT,2,FALSE),"") -> 5 | R18: 7 | S18: 8 | W18: 3 | X18: 1 | Y18: 1 | Z18: 2 | AA18: 107103102101101 | AB18: 107104101101101 | AC18: 9 | AF18: 22 | AG18: 3 | AI18: 0 | AJ18: 1 | AL18: 0 | AM18: 1 | AO18: 9 | AP18: 9 | AR18: =IF(ISNUMBER(SMALL(#REF!,ROW()-2)),SMALL(#REF!,ROW()-2),"") ->  | AS18: 1 | AU18: =IF(#REF!,#REF!+0,) ->  | AW18: 1 | AX18: =IF(ISNUMBER(AU18),VLOOKUP(AU18,AV:AW,2,FALSE),"") ->  | AZ18: =P18 -> 25 | BA18: 58 | BB18: 14 | BC18: =IF(ISNUMBER(AZ18),VLOOKUP(AZ18,BA:BB,2,FALSE),"") -> 3 | BE18: 7 | BF18: 4 | BI18: =P18 -> 25 | BJ18: =SUM(G18,G19,G20) -> 10 | BK18: =SUM(I18,I19,I20) -> 4 | BL18: =SUM(M18,M19,M20) -> 4 | BM18: =O18 -> 4 | BN18: =#REF! ->  | BO18: =SUM(K18,K19,K20) -> 3 | BP18: =#REF! ->  | BQ18: =IF(ISNUMBER(P18),CONCATENATE(BI18+100,BJ18+100,BK18+100,BO18+100,BL18+100,BM18+100)+0,"") -> 1.251101041e+17 | BR18: =IF(ISNUMBER(SMALL(BQ:BQ,ROW()-2)),SMALL(BQ:BQ,ROW()-2),"") -> 1.581211041e+17 | BS18: 1.581211041e+17 | BT18: 16 | BW18: 10 | BX18: 1 | BZ18: 2 | CF18: 3 | CG18: =VLOOKUP(N18,AO:AP,2,FALSE) -> 4
C19: =CONCATENATE(B20,"B") -> 6B | D19: WIKTORIA WIŚNIEWSKA | F19: 20 | G19: 5 | H19: 10 | I19: 1 | J19: 0 | K19: 1 | L19: 1 | M19: 2 | R19: 9 | S19: 16 | W19: 5 | X19: 1 | Y19: 2 | Z19: 1 | AA19: 109105101101102 | AB19: 108103101101103 | AC19: 10 | AF19: 22 | AG19: 3 | AI19: 0 | AJ19: 1 | AL19: 0 | AM19: 1 | AO19: 9 | AP19: 9 | AR19: =IF(ISNUMBER(SMALL(#REF!,ROW()-2)),SMALL(#REF!,ROW()-2),"") ->  | AS19: 1 | AW19: 1 | BA19: 59 | BB19: 15 | BE19: 8 | BF19: 5 | BS19: 1.591181041e+17 | BT19: 17 | BW19: 10 | BX19: 1 | BZ19: 1 | CF19: 5
B20: 6 | C20: =CONCATENATE(B20,"C") -> 6C | D20: MICHAŁ GRZEBSKI | F20: 23 | G20: 2 | H20: 10 | I20: 1 | J20: 0 | K20: 1 | L20: 0 | M20: 1 | R20: 5 | S20: 3 | W20: 2 | X20: 1 | Y20: 1 | Z20: 1 | AA20: 105102101101101 | AB20: 108103101103101 | AC20: 11 | AF20: 22 | AG20: 3 | AI20: 0 | AJ20: 1 | AL20: 0 | AM20: 1 | AP20: 10 | AR20: =IF(ISNUMBER(SMALL(#REF!,ROW()-2)),SMALL(#REF!,ROW()-2),"") ->  | AS20: 1 | AW20: 1 | BB20: 16 | BE20: 8 | BF20: 5 | BT20: 18 | BW20: 10 | BX20: 1 | BZ20: 1 | CF20: 2
C21: =CONCATENATE(B23,"A") -> 7A | D21: ZUZANNA OLEKSY | E21: Szkoła Podstawowa nr 1 we Włoszczowie | F21: 23 | G21: 2 | H21: 10 | I21: 1 | J21: 0 | K21: 1 | L21: 1 | M21: 2 | N21: 17 | O21: =IF(ISBLANK(N21),"",IF(N21=0,$CF$2,CG21)) -> 2 | P21: =IF(ISNUMBER(O21),IF(ISNUMBER(O21),IF(ISNUMBER(O21),O21+G21+G22+G23+I21+I22+I23+K21+K22+K23+M21+M22+M23,""),""),"") -> 23 | Q21: =IF(ISNUMBER(P21),VLOOKUP(BQ21,BS:BT,2,FALSE),"") -> 1 | R21: 6 | S21: 4 | W21: 2 | X21: 1 | Y21: 2 | Z21: 1 | AA21: 106102101101102 | AB21: 108103103101101 | AC21: 12 | AF21: 22 | AG21: 3 | AI21: 0 | AJ21: 1 | AL21: 0 | AM21: 1 | AP21: 10 | AR21: =IF(ISNUMBER(SMALL(#REF!,ROW()-2)),SMALL(#REF!,ROW()-2),"") ->  | AS21: 1 | AU21: =IF(#REF!,#REF!+0,) ->  | AW21: 1 | AX21: =IF(ISNUMBER(AU21),VLOOKUP(AU21,AV:AW,2,FALSE),"") ->  | AZ21: =P21 -> 23 | BB21: 16 | BC21: =IF(ISNUMBER(AZ21),VLOOKUP(AZ21,BA:BB,2,FALSE),"") -> 1 | BE21: 8 | BF21: 5 | BI21: =P21 -> 23 | BJ21: =SUM(G21,G22,G23) -> 8 | BK21: =SUM(I21,I22,I23) -> 3 | BL21: =SUM(M21,M22,M23) -> 7 | BM21: =O21 -> 2 | BN21: =#REF! ->  | BO21: =SUM(K21,K22,K23) -> 3 | BP21: =#REF! ->  | BQ21: =IF(ISNUMBER(P21),CONCATENATE(BI21+100,BJ21+100,BK21+100,BO21+100,BL21+100,BM21+100)+0,"") -> 1.231081031e+17 | BR21: =IF(ISNUMBER(SMALL(BQ:BQ,ROW()-2)),SMALL(BQ:BQ,ROW()-2),"") ->  | BT21: 18 | BW21: 10 | BX21: 1 | BZ21: 1 | CF21: 2 | CG21: =VLOOKUP(N21,AO:AP,2,FALSE) -> 2
C22: =CONCATENATE(B23,"B") -> 7B | D22: LENA RAK | F22: 22 | G22: 3 | H22: 10 | I22: 1 | J22: 0 | K22: 1 | L22: 1 | M22: 2 | R22: 7 | S22: 6 | W22: 3 | X22: 1 | Y22: 2 | Z22: 1 | AA22: 107103101101102 | AB22: 108104101102101 | AC22: 13 | AF22: 22 | AG22: 3 | AI22: 0 | AJ22: 1 | AL22: 0 | AM22: 1 | AP22: 10 | AR22: =IF(ISNUMBER(SMALL(#REF!,ROW()-2)),SMALL(#REF!,ROW()-2),"") ->  | AS22: 1 | AW22: 1 | BB22: 16 | BE22: 8 | BF22: 5 | BT22: 18 | BW22: 10 | BX22: 1 | BZ22: 1 | CF22: 3
B23: 7 | C23: =CONCATENATE(B23,"C") -> 7C | D23: KUBA KACZOR | F23: 22 | G23: 3 | H23: 10 | I23: 1 | J23: 0 | K23: 1 | L23: 2 | M23: 3 | R23: 8 | S23: 10 | W23: 3 | X23: 1 | Y23: 3 | Z23: 1 | AA23: 108103101101103 | AB23: 108105101101101 | AC23: 14 | AF23: 22 | AG23: 3 | AI23: 0 | AJ23: 1 | AL23: 1 | AM23: 2 | AP23: 10 | AR23: =IF(ISNUMBER(SMALL(#REF!,ROW()-2)),SMALL(#REF!,ROW()-2),"") ->  | AS23: 1 | AW23: 1 | BB23: 16 | BE23: 8 | BF23: 5 | BT23: 18 | BW23: 10 | BX23: 1 | BZ23: 1 | CF23: 3
C24: =CONCATENATE(B26,"A") -> 8A | D24: MARCIN WÓJTOWICZ | E24: Szkoła Podstawowa w Lipie | F24: 24 | G24: 1 | H24: 10 | I24: 1 | J24: 0 | K24: 1 | L24: 1 | M24: 2 | N24: 14 | O24: =IF(ISBLANK(N24),"",IF(N24=0,$CF$2,CG24)) -> 5 | P24: =IF(ISNUMBER(O24),IF(ISNUMBER(O24),IF(ISNUMBER(O24),O24+G24+G25+G26+I24+I25+I26+K24+K25+K26+M24+M25+M26,""),""),"") -> 25 | Q24: =IF(ISNUMBER(P24),VLOOKUP(BQ24,BS:BT,2,FALSE),"") -> 4 | R24: 5 | S24: 2 | W24: 1 | X24: 1 | Y24: 2 | Z24: 1 | AA24: 105101101101102 | AB24: 109102101101105 | AC24: 15 | AF24: 21 | AG24: 4 | AI24: 0 | AJ24: 1 | AL24: 1 | AM24: 2 | AP24: 10 | AR24: =IF(ISNUMBER(SMALL(#REF!,ROW()-2)),SMALL(#REF!,ROW()-2),"") ->  | AS24: 1 | AU24: =IF(#REF!,#REF!+0,) ->  | AW24: 1 | AX24: =IF(ISNUMBER(AU24),VLOOKUP(AU24,AV:AW,2,FALSE),"") ->  | AZ24: =P24 -> 25 | BB24: 16 | BC24: =IF(ISNUMBER(AZ24),VLOOKUP(AZ24,BA:BB,2,FALSE),"") -> 3 | BE24: 9 | BF24: 6 | BI24: =P24 -> 25 | BJ24: =SUM(G24,G25,G26) -> 5 | BK24: =SUM(I24,I25,I26) -> 3 | BL24: =SUM(M24,M25,M26) -> 7 | BM24: =O24 -> 5 | BN24: =#REF! ->  | BO24: =SUM(K24,K25,K26) -> 5 | BP24: =#REF! ->  | BQ24: =IF(ISNUMBER(P24),CONCATENATE(BI24+100,BJ24+100,BK24+100,BO24+100,BL24+100,BM24+100)+0,"") -> 1.251051031e+17 | BR24: =IF(ISNUMBER(SMALL(BQ:BQ,ROW()-2)),SMALL(BQ:BQ,ROW()-2),"") ->  | BT24: 18 | BW24: 10 | BX24: 1 | BZ24: 1 | CF24: 1 | CG24: =VLOOKUP(N24,AO:AP,2,FALSE) -> 5
C25: =CONCATENATE(B26,"B") -> 8B | D25: IGOR SOBCZYŃSKI | F25: 23 | G25: 2 | H25: 10 | I25: 1 | J25: 6 | K25: 3 | L25: 3 | M25: 4 | R25: 10 | S25: 18 | W25: 2 | X25: 3 | Y25: 4 | Z25: 1 | AA25: 110102101103104 | AB25: 109105101101102 | AC25: 16 | AF25: 21 | AG25: 4 | AI25: 0 | AJ25: 1 | AL25: 1 | AM25: 2 | AP25: 10 | AR25: =IF(ISNUMBER(SMALL(#REF!,ROW()-2)),SMALL(#REF!,ROW()-2),"") ->  | AS25: 1 | AW25: 1 | BB25: 16 | BE25: 9 | BF25: 6 | BT25: 18 | BW25: 10 | BX25: 1 | BZ25: 1 | CF25: 2 | CH25: 3
B26: 8 | C26: =CONCATENATE(B26,"C") -> 8C | D26: ILONA ROZMUS | F26: 23 | G26: 2 | H26: 10 | I26: 1 | J26: 0 | K26: 1 | L26: 0 | M26: 1 | R26: 5 | S26: 3 | W26: 2 | X26: 1 | Y26: 1 | Z26: 1 | AA26: 105102101101101 | AB26: 109105101101102 | AC26: 16 | AF26: 21 | AG26: 4 | AI26: 0 | AJ26: 1 | AL26: 1 | AM26: 2 | AP26: 10 | AR26: =IF(ISNUMBER(SMALL(#REF!,ROW()-2)),SMALL(#REF!,ROW()-2),"") ->  | AS26: 1 | AW26: 1 | BB26: 16 | BE26: 9 | BF26: 6 | BT26: 18 | BW26: 10 | BX26: 1 | BZ26: 1 | CF26: 2
C27: =CONCATENATE(B29,"A") -> 9A | D27: ANNA PUZON | E27: Publiczna Szkoła Podstawowa w Czarnej | F27: 18 | G27: 7 | H27: 10 | I27: 1 | J27: 0 | K27: 1 | L27: 1 | M27: 2 | N27: 13 | O27: =IF(ISBLANK(N27),"",IF(N27=0,$CF$2,CG27)) -> 6 | P27: =IF(ISNUMBER(O27),IF(ISNUMBER(O27),IF(ISNUMBER(O27),O27+G27+G28+G29+I27+I28+I29+K27+K28+K29+M27+M28+M29,""),""),"") -> 32 | Q27: =IF(ISNUMBER(P27),VLOOKUP(BQ27,BS:BT,2,FALSE),"") -> 9 | R27: 11 | S27: 24 | W27: 7 | X27: 1 | Y27: 2 | Z27: 1 | AA27: 111107101101102 | AB27: 109106101101101 | AC27: 17 | AF27: 21 | AG27: 4 | AI27: 0 | AJ27: 1 | AL27: 1 | AM27: 2 | AP27: 10 | AR27: =IF(ISNUMBER(SMALL(#REF!,ROW()-2)),SMALL(#REF!,ROW()-2),"") ->  | AS27: 1 | AU27: =IF(#REF!,#REF!+0,) ->  | AW27: 1 | AX27: =IF(ISNUMBER(AU27),VLOOKUP(AU27,AV:AW,2,FALSE),"") ->  | AZ27: =P27 -> 32 | BB27: 16 | BC27: =IF(ISNUMBER(AZ27),VLOOKUP(AZ27,BA:BB,2,FALSE),"") -> 7 | BE27: 9 | BF27: 6 | BI27: =P27 -> 32 | BJ27: =SUM(G27,G28,G29) -> 14 | BK27: =SUM(I27,I28,I29) -> 3 | BL27: =SUM(M27,M28,M29) -> 4 | BM27: =O27 -> 6 | BN27: =#REF! ->  | BO27: =SUM(K27,K28,K29) -> 5 | BP27: =#REF! ->  | BQ27: =IF(ISNUMBER(P27),CONCATENATE(BI27+100,BJ27+100,BK27+100,BO27+100,BL27+100,BM27+100)+0,"") -> 1.321141031e+17 | BR27: =IF(ISNUMBER(SMALL(BQ:BQ,ROW()-2)),SMALL(BQ:BQ,ROW()-2),"") ->  | BT27: 18 | BW27: 10 | BX27: 1 | BZ27: 1 | CF27: 7 | CG27: =VLOOKUP(N27,AO:AP,2,FALSE) -> 6
C28: =CONCATENATE(B29,"B") -> 9B | D28: ERYK SZĘSZOŁ | F28: 21 | G28: 4 | H28: 10 | I28: 1 | J28: 0 | K28: 1 | L28: 0 | M28: 1 | R28: 7 | S28: 9 | W28: 4 | X28: 1 | Y28: 1 | Z28: 1 | AA28: 107104101101101 | AB28: 109106101101101 | AC28: 17 | AF28: 21 | AG28: 4 | AI28: 0 | AJ28: 1 | AL28: 1 | AM28: 2 | AP28: 10 | AR28: =IF(ISNUMBER(SMALL(#REF!,ROW()-2)),SMALL(#REF!,ROW()-2),"") ->  | AS28: 1 | AW28: 1 | BB28: 16 | BE28: 9 | BF28: 6 | BT28: 18 | BW28: 10 | BX28: 1 | BZ28: 1 | CF28: 4
B29: 9 | C29: =CONCATENATE(B29,"C") -> 9C | D29: KAMIL WAŚKO | F29: 22 | G29: 3 | H29: 10 | I29: 1 | J29: 6 | K29: 3 | L29: 0 | M29: 1 | R29: 8 | S29: 11 | W29: 3 | X29: 3 | Y29: 1 | Z29: 1 | AA29: 108103101103101 | AB29: 110102101103104 | AC29: 18 | AF29: 21 | AG29: 4 | AI29: 0 | AJ29: 1 | AL29: 1 | AM29: 2 | AP29: 10 | AR29: =IF(ISNUMBER(SMALL(#REF!,ROW()-2)),SMALL(#REF!,ROW()-2),"") ->  | AS29: 1 | AW29: 1 | BB29: 16 | BE29: 10 | BF29: 7 | BT29: 18 | BW29: 10 | BX29: 1 | BZ29: 1 | CF29: 3 | CH29: 3
C30: =CONCATENATE(B32,"A") -> 10A | D30: JACEK SKRZYPEK | E30: Szkoła Podstawowa w Nowym Kramsku | F30: 21 | G30: 4 | H30: 10 | I30: 1 | J30: 0 | K30: 1 | L30: 4 | M30: 5 | N30: 11 | O30: =IF(ISBLANK(N30),"",IF(N30=0,$CF$2,CG30)) -> 7 | P30: =IF(ISNUMBER(O30),IF(ISNUMBER(O30),IF(ISNUMBER(O30),O30+G30+G31+G32+I30+I31+I32+K30+K31+K32+M30+M31+M32,""),""),"") -> 38 | Q30: =IF(ISNUMBER(P30),VLOOKUP(BQ30,BS:BT,2,FALSE),"") -> 11 | R30: 11 | S30: 21 | W30: 4 | X30: 1 | Y30: 5 | Z30: 1 | AA30: 111104101101105 | AB30: 110106101101102 | AC30: 19 | AF30: 21 | AG30: 4 | AI30: 0 | AJ30: 1 | AL30: 1 | AM30: 2 | AP30: 10 | AR30: =IF(ISNUMBER(SMALL(#REF!,ROW()-2)),SMALL(#REF!,ROW()-2),"") ->  | AS30: 1 | AU30: =IF(#REF!,#REF!+0,) ->  | AW30: 1 | AX30: =IF(ISNUMBER(AU30),VLOOKUP(AU30,AV:AW,2,FALSE),"") ->  | AZ30: =P30 -> 38 | BB30: 16 | BC30: =IF(ISNUMBER(AZ30),VLOOKUP(AZ30,BA:BB,2,FALSE),"") -> 9 | BE30: 10 | BF30: 7 | BI30: =P30 -> 38 | BJ30: =SUM(G30,G31,G32) -> 10 | BK30: =SUM(I30,I31,I32) -> 3 | BL30: =SUM(M30,M31,M32) -> 15 | BM30: =O30 -> 7 | BN30: =#REF! ->  | BO30: =SUM(K30,K31,K32) -> 3 | BP30: =#REF! ->  | BQ30: =IF(ISNUMBER(P30),CONCATENATE(BI30+100,BJ30+100,BK30+100,BO30+100,BL30+100,BM30+100)+0,"") -> 1.381101031e+17 | BR30: =IF(ISNUMBER(SMALL(BQ:BQ,ROW()-2)),SMALL(BQ:BQ,ROW()-2),"") ->  | BT30: 18 | BW30: 10 | BX30: 1 | BZ30: 1 | CF30: 4 | CG30: =VLOOKUP(N30,AO:AP,2,FALSE) -> 7
C31: =CONCATENATE(B32,"B") -> 10B | D31: OSKAR ECKERT | F31: 23 | G31: 2 | H31: 10 | I31: 1 | J31: 0 | K31: 1 | L31: 4 | M31: 5 | R31: 9 | S31: 15 | W31: 2 | X31: 1 | Y31: 5 | Z31: 1 | AA31: 109102101101105 | AB31: 111103101101106 | AC31: 20 | AF31: 21 | AG31: 4 | AI31: 0 | AJ31: 1 | AL31: 1 | AM31: 2 | AP31: 10 | AR31: =IF(ISNUMBER(SMALL(#REF!,ROW()-2)),SMALL(#REF!,ROW()-2),"") ->  | AS31: 1 | AW31: 1 | BB31: 16 | BE31: 11 | BF31: 8 | BT31: 18 | BW31: 10 | BX31: 1 | BZ31: 1 | CF31: 2
B32: 10 | C32: =CONCATENATE(B32,"C") -> 10C | D32: AGATA ZAMOLSKA | F32: 21 | G32: 4 | H32: 10 | I32: 1 | J32: 0 | K32: 1 | L32: 4 | M32: 5 | R32: 11 | S32: 21 | W32: 4 | X32: 1 | Y32: 5 | Z32: 1 | AA32: 111104101101105 | AB32: 111104101101105 | AC32: 21 | AF32: 20 | AG32: 5 | AI32: 0 | AJ32: 1 | AL32: 1 | AM32: 2 | AP32: 10 | AR32: =IF(ISNUMBER(SMALL(#REF!,ROW()-2)),SMALL(#REF!,ROW()-2),"") ->  | AS32: 1 | AW32: 1 | BB32: 16 | BE32: 11 | BF32: 8 | BT32: 18 | BW32: 10 | BX32: 1 | BZ32: 1 | CF32: 4
C33: =CONCATENATE(B35,"A") -> 11A | D33: OLIVIER TRELA | E33: Szkola Podstawowa w Psarach | F33: 20 | G33: 5 | H33: 10 | I33: 1 | J33: 0 | K33: 1 | L33: 12 | M33: 9 | N33: 10 | O33: =IF(ISBLANK(N33),"",IF(N33=0,$CF$2,CG33)) -> 8 | P33: =IF(ISNUMBER(O33),IF(ISNUMBER(O33),IF(ISNUMBER(O33),O33+G33+G34+G35+I33+I34+I35+K33+K34+K35+M33+M34+M35,""),""),"") -> 49 | Q33: =IF(ISNUMBER(P33),VLOOKUP(BQ33,BS:BT,2,FALSE),"") -> 13 | R33: 16 | S33: 33 | W33: 5 | X33: 1 | Y33: 9 | Z33: 1 | AA33: 116105101101109 | AB33: 111104101101105 | AC33: 21 | AF33: 20 | AG33: 5 | AI33: 0 | AJ33: 1 | AL33: 2 | AM33: 3 | AP33: 10 | AR33: =IF(ISNUMBER(SMALL(#REF!,ROW()-2)),SMALL(#REF!,ROW()-2),"") ->  | AS33: 1 | AU33: =IF(#REF!,#REF!+0,) ->  | AW33: 1 | AX33: =IF(ISNUMBER(AU33),VLOOKUP(AU33,AV:AW,2,FALSE),"") ->  | AZ33: =P33 -> 49 | BB33: 16 | BC33: =IF(ISNUMBER(AZ33),VLOOKUP(AZ33,BA:BB,2,FALSE),"") -> 11 | BE33: 11 | BF33: 8 | BI33: =P33 -> 49 | BJ33: =SUM(G33,G34,G35) -> 10 | BK33: =SUM(I33,I34,I35) -> 3 | BL33: =SUM(M33,M34,M35) -> 25 | BM33: =O33 -> 8 | BN33: =#REF! ->  | BO33: =SUM(K33,K34,K35) -> 3 | BP33: =#REF! ->  | BQ33: =IF(ISNUMBER(P33),CONCATENATE(BI33+100,BJ33+100,BK33+100,BO33+100,BL33+100,BM33+100)+0,"") -> 1.491101031e+17 | BR33: =IF(ISNUMBER(SMALL(BQ:BQ,ROW()-2)),SMALL(BQ:BQ,ROW()-2),"") ->  | BT33: 18 | BW33: 10 | BX33: 1 | BZ33: 1 | CF33: 5 | CG33: =VLOOKUP(N33,AO:AP,2,FALSE) -> 8
C34: =CONCATENATE(B35,"B") -> 11B | D34: WIKTOR SKUŁA | F34: 22 | G34: 3 | H34: 10 | I34: 1 | J34: 0 | K34: 1 | L34: 5 | M34: 6 | R34: 11 | S34: 20 | W34: 3 | X34: 1 | Y34: 6 | Z34: 1 | AA34: 111103101101106 | AB34: 111105101103102 | AC34: 22 | AF34: 20 | AG34: 5 | AI34: 0 | AJ34: 1 | AL34: 2 | AM34: 3 | AP34: 10 | AR34: =IF(ISNUMBER(SMALL(#REF!,ROW()-2)),SMALL(#REF!,ROW()-2),"") ->  | AS34: 1 | AW34: 1 | BB34: 16 | BE34: 11 | BF34: 8 | BT34: 18 | BW34: 10 | BX34: 1 | BZ34: 1 | CF34: 3
B35: 11 | C35: =CONCATENATE(B35,"C") -> 11C | D35: MIKOŁAJ KWAŚNIEWSKI | F35: 23 | G35: =IF(ISBLANK(F35),"",IF(F35=0,$CE$2,CF35)) -> 2 | H35: 10 | I35: 1 | J35: 0 | K35: 1 | L35: 15 | M35: =IF(ISNUMBER(L35),VLOOKUP(L35,AL:AM,2,FALSE),"") -> 10 | R35: 14 | S35: 31 | W35: 2 | X35: 1 | Y35: 10 | Z35: 1 | AA35: 114102101101110 | AB35: 111105102103101 | AC35: 23 | AF35: =IF(ISNUMBER(LARGE(F:F,ROW()-2)),LARGE(F:F,ROW()-2),"") -> 20 | AG35: 5 | AI35: =IF(ISNUMBER(SMALL(J:J,ROW()-2)),SMALL(J:J,ROW()-2),"") -> 0 | AJ35: 1 | AL35: =IF(ISNUMBER(SMALL(L:L,ROW()-2)),SMALL(L:L,ROW()-2),"") -> 3 | AM35: 4 | AO35: =IF(ISNUMBER(LARGE(N:N,ROW()-2)),LARGE(N:N,ROW()-2),"") ->  | AP35: 10 | AR35: =IF(ISNUMBER(SMALL(#REF!,ROW()-2)),SMALL(#REF!,ROW()-2),"") ->  | AS35: 1 | AV35: =IF(ISNUMBER(LARGE(AU:AU,ROW()-2)),LARGE(AU:AU,ROW()-2),"") ->  | AW35: 1 | BA35: =IF(ISNUMBER(SMALL(P:P,ROW()-2)),SMALL(P:P,ROW()-2),"") ->  | BB35: 16 | BE35: 11 | BF35: 8 | BT35: 18 | BW35: =IF(ISNUMBER(LARGE(H:H,ROW()-2)),LARGE(H:H,ROW()-2),"") -> 10 | BX35: 1 | BZ35: 1 | CF35: 2
C36: =CONCATENATE(B38,"A") -> 12A | D36: WERONIKA JASTRZĘBSKA | E36: Szkoła Podstawowa w Białkach | F36: 23 | G36: 2 | H36: 10 | I36: 1 | J36: 0 | K36: 1 | L36: 0 | M36: 1 | N36: 9 | O36: =IF(ISBLANK(N36),"",IF(N36=0,$CF$2,CG36)) -> 9 | P36: =IF(ISNUMBER(O36),IF(ISNUMBER(O36),IF(ISNUMBER(O36),O36+G36+G37+G38+I36+I37+I38+K36+K37+K38+M36+M37+M38,""),""),"") -> 39 | Q36: =IF(ISNUMBER(P36),VLOOKUP(BQ36,BS:BT,2,FALSE),"") -> 12 | R36: 5 | S36: 3 | W36: 2 | X36: 1 | Y36: 1 | Z36: 1 | AA36: 105102101101101 | AB36: 111107101101102 | AC36: 24 | AF36: 20 | AG36: =IF(AF35<>AF36,AG35+1,AG35) -> 5 | AI36: 3 | AJ36: 2 | AL36: 3 | AM36: 4 | AP36: 10 | AR36: =IF(ISNUMBER(SMALL(#REF!,ROW()-2)),SMALL(#REF!,ROW()-2),"") ->  | AS36: 1 | AU36: =IF(#REF!,#REF!+0,) ->  | AW36: 1 | AX36: =IF(ISNUMBER(AU36),VLOOKUP(AU36,AV:AW,2,FALSE),"") ->  | AZ36: =P36 -> 39 | BB36: 16 | BC36: =IF(ISNUMBER(AZ36),VLOOKUP(AZ36,BA:BB,2,FALSE),"") -> 10 | BE36: 11 | BF36: 8 | BI36: =P36 -> 39 | BJ36: =SUM(G36,G37,G38) -> 15 | BK36: =SUM(I36,I37,I38) -> 5 | BL36: =SUM(M36,M37,M38) -> 4 | BM36: =O36 -> 9 | BN36: =#REF! ->  | BO36: =SUM(K36,K37,K38) -> 6 | BP36: =#REF! ->  | BQ36: =IF(ISNUMBER(P36),CONCATENATE(BI36+100,BJ36+100,BK36+100,BO36+100,BL36+100,BM36+100)+0,"") -> 1.391151051e+17 | BR36: =IF(ISNUMBER(SMALL(BQ:BQ,ROW()-2)),SMALL(BQ:BQ,ROW()-2),"") ->  | BT36: 18 | BW36: 10 | BX36: 1 | BZ36: 1 | CF36: 2 | CG36: =VLOOKUP(N36,AO:AP,2,FALSE) -> 9
C37: =CONCATENATE(B38,"B") -> 12B | D37: PATRYCJA PASTOR | F37: 18 | G37: 7 | H37: 10 | I37: 1 | J37: 6 | K37: 3 | L37: 0 | M37: 1 | R37: 12 | S37: 27 | W37: 7 | X37: 3 | Y37: 1 | Z37: 1 | AA37: 112107101103101 | AB37: 112103101102106 | AC37: 25 | AF37: 20 | AG37: 5 | AI37: 3 | AJ37: 2 | AL37: 3 | AM37: 4 | AP37: 10 | AR37: =IF(ISNUMBER(SMALL(#REF!,ROW()-2)),SMALL(#REF!,ROW()-2),"") ->  | AS37: 1 | AW37: 1 | BB37: 16 | BE37: 12 | BF37: 9 | BT37: 18 | BW37: 10 | BX37: 1 | BZ37: 1 | CF37: 7 | CH37: 3
B38: 12 | C38: =CONCATENATE(B38,"C") -> 12C | D38: ADRIAN GAWRON | F38: 19 | G38: 6 | H38: 8 | I38: 3 | J38: 3 | K38: 2 | L38: 1 | M38: 2 | R38: 13 | S38: 28 | W38: 6 | X38: 2 | Y38: 2 | Z38: 3 | AA38: 113106103102102 | AB38: 112105102101104 | AC38: 26 | AF38: 20 | AG38: 5 | AI38: 3 | AJ38: 2 | AL38: 3 | AM38: 4 | AP38: 10 | AR38: =IF(ISNUMBER(SMALL(#REF!,ROW()-2)),SMALL(#REF!,ROW()-2),"") ->  | AS38: 1 | AW38: 1 | BB38: 16 | BE38: 12 | BF38: 9 | BT38: 18 | BW38: 10 | BX38: 1 | BZ38: 3 | CF38: 6 | CH38: 2
C39: =CONCATENATE(B41,"A") -> 13A | D39: ANGELIKA ZDEBSKA | E39: Zespół Szkolno-Przedszkolny w Mikluszowicach | F39: 23 | G39: 2 | H39: 10 | I39: 1 | J39: 0 | K39: 1 | L39: 0 | M39: 1 | N39: 14 | O39: =IF(ISBLANK(N39),"",IF(N39=0,$CF$2,CG39)) -> 5 | P39: =IF(ISNUMBER(O39),IF(ISNUMBER(O39),IF(ISNUMBER(O39),O39+G39+G40+G41+I39+I40+I41+K39+K40+K41+M39+M40+M41,""),""),"") -> 24 | Q39: =IF(ISNUMBER(P39),VLOOKUP(BQ39,BS:BT,2,FALSE),"") -> 2 | R39: 5 | S39: 3 | W39: 2 | X39: 1 | Y39: 1 | Z39: 1 | AA39: 105102101101101 | AB39: 112107101103101 | AC39: 27 | AF39: 19 | AG39: 6 | AI39: 3 | AJ39: 2 | AL39: 3 | AM39: 4 | AP39: 10 | AR39: =IF(ISNUMBER(SMALL(#REF!,ROW()-2)),SMALL(#REF!,ROW()-2),"") ->  | AS39: 1 | AU39: =IF(#REF!,#REF!+0,) ->  | AW39: 1 | AX39: =IF(ISNUMBER(AU39),VLOOKUP(AU39,AV:AW,2,FALSE),"") ->  | AZ39: =P39 -> 24 | BB39: 16 | BC39: =IF(ISNUMBER(AZ39),VLOOKUP(AZ39,BA:BB,2,FALSE),"") -> 2 | BE39: 12 | BF39: 9 | BI39: =P39 -> 24 | BJ39: =SUM(G39,G40,G41) -> 9 | BK39: =SUM(I39,I40,I41) -> 3 | BL39: =SUM(M39,M40,M41) -> 4 | BM39: =O39 -> 5 | BN39: =#REF! ->  | BO39: =SUM(K39,K40,K41) -> 3 | BP39: =#REF! ->  | BQ39: =IF(ISNUMBER(P39),CONCATENATE(BI39+100,BJ39+100,BK39+100,BO39+100,BL39+100,BM39+100)+0,"") -> 1.241091031e+17 | BR39: =IF(ISNUMBER(SMALL(BQ:BQ,ROW()-2)),SMALL(BQ:BQ,ROW()-2),"") ->  | BT39: 18 | BW39: 10 | BX39: 1 | BZ39: 1 | CF39: 2 | CG39: =VLOOKUP(N39,AO:AP,2,FALSE) -> 5
C40: =CONCATENATE(B41,"B") -> 13B | D40: DAGMARA DZIEDZIC | F40: 21 | G40: 4 | H40: 10 | I40: 1 | J40: 0 | K40: 1 | L40: 0 | M40: 1 | R40: 7 | S40: 9 | W40: 4 | X40: 1 | Y40: 1 | Z40: 1 | AA40: 107104101101101 | AB40: 113106103102102 | AC40: 28 | AF40: 19 | AG40: 6 | AI40: 3 | AJ40: 2 | AL40: 4 | AM40: 5 | AP40: 10 | AR40: =IF(ISNUMBER(SMALL(#REF!,ROW()-2)),SMALL(#REF!,ROW()-2),"") ->  | AS40: 1 | AW40: 1 | BB40: 16 | BE40: 13 | BF40: 10 | BT40: 18 | BW40: 10 | BX40: 1 | BZ40: 1 | CF40: 4
B41: 13 | C41: =CONCATENATE(B41,"C") -> 13C | D41: MARCEL BRYDNIAK | F41: 22 | G41: 3 | H41: 10 | I41: 1 | J41: 0 | K41: 1 | L41: 1 | M41: 2 | R41: 7 | S41: 6 | W41: 3 | X41: 1 | Y41: 2 | Z41: 1 | AA41: 107103101101102 | AB41: 113107101101104 | AC41: 29 | AF41: 19 | AG41: 6 | AI41: 3 | AJ41: 2 | AL41: 4 | AM41: 5 | AP41: 10 | AR41: =IF(ISNUMBER(SMALL(#REF!,ROW()-2)),SMALL(#REF!,ROW()-2),"") ->  | AS41: 1 | AW41: 1 | BB41: 16 | BE41: 13 | BF41: 10 | BT41: 18 | BW41: 10 | BX41: 1 | BZ41: 1 | CF41: 3
C42: =CONCATENATE(B44,"A") -> 14A | D42: PATRYCJA GOŁĄBIEWSKA | E42: Szkoła Podstawowa nr 1 w Koronowie | F42: 14 | G42: 10 | H42: 10 | I42: 1 | J42: 3 | K42: 2 | L42: 3 | M42: 4 | N42: 13 | O42: =IF(ISBLANK(N42),"",IF(N42=0,$CF$2,CG42)) -> 6 | P42: =IF(ISNUMBER(O42),IF(ISNUMBER(O42),IF(ISNUMBER(O42),O42+G42+G43+G44+I42+I43+I44+K42+K43+K44+M42+M43+M44,""),""),"") -> 52 | Q42: =IF(ISNUMBER(P42),VLOOKUP(BQ42,BS:BT,2,FALSE),"") -> 15 | R42: 17 | S42: 38 | W42: 10 | X42: 2 | Y42: 4 | Z42: 1 | AA42: 117110101102104 | AB42: 113107101102103 | AC42: 30 | AF42: 19 | AG42: 6 | AI42: 3 | AJ42: 2 | AL42: 4 | AM42: 5 | AP42: 10 | AR42: =IF(ISNUMBER(SMALL(#REF!,ROW()-2)),SMALL(#REF!,ROW()-2),"") ->  | AS42: 1 | AU42: =IF(#REF!,#REF!+0,) ->  | AW42: 1 | AX42: =IF(ISNUMBER(AU42),VLOOKUP(AU42,AV:AW,2,FALSE),"") ->  | AZ42: =P42 -> 52 | BB42: 16 | BC42: =IF(ISNUMBER(AZ42),VLOOKUP(AZ42,BA:BB,2,FALSE),"") -> 13 | BE42: 13 | BF42: 10 | BI42: =P42 -> 52 | BJ42: =SUM(G42,G43,G44) -> 23 | BK42: =SUM(I42,I43,I44) -> 3 | BL42: =SUM(M42,M43,M44) -> 12 | BM42: =O42 -> 6 | BN42: =#REF! ->  | BO42: =SUM(K42,K43,K44) -> 8 | BP42: =#REF! ->  | BQ42: =IF(ISNUMBER(P42),CONCATENATE(BI42+100,BJ42+100,BK42+100,BO42+100,BL42+100,BM42+100)+0,"") -> 1.521231031e+17 | BR42: =IF(ISNUMBER(SMALL(BQ:BQ,ROW()-2)),SMALL(BQ:BQ,ROW()-2),"") ->  | BT42: 18 | BW42: 10 | BX42: 1 | BZ42: 1 | CF42: 10 | CG42: =VLOOKUP(N42,AO:AP,2,FALSE) -> 6 | CH42: 2
C43: =CONCATENATE(B44,"B") -> 14B | D43: SZYMON BUGAJSKI | F43: 18 | G43: 7 | H43: 10 | I43: 1 | J43: 3 | K43: 2 | L43: 2 | M43: 3 | R43: 13 | S43: 30 | W43: 7 | X43: 2 | Y43: 3 | Z43: 1 | AA43: 113107101102103 | AB43: 114102101101110 | AC43: 31 | AF43: 19 | AG43: 6 | AI43: 3 | AJ43: 2 | AL43: 4 | AM43: 5 | AP43: 10 | AR43: =IF(ISNUMBER(SMALL(#REF!,ROW()-2)),SMALL(#REF!,ROW()-2),"") ->  | AS43: 1 | AW43: 1 | BB43: 16 | BE43: 14 | BF43: 11 | BT43: 18 | BW43: 10 | BX43: 1 | BZ43: 1 | CF43: 7 | CH43: 2
B44: 14 | C44: =CONCATENATE(B44,"C") -> 14C | D44: MARCIN KRYGER | F44: 19 | G44: 6 | H44: 10 | I44: 1 | J44: 12 | K44: 4 | L44: 4 | M44: 5 | R44: 16 | S44: 34 | W44: 6 | X44: 4 | Y44: 5 | Z44: 1 | AA44: 116106101104105 | AB44: 114104101102107 | AC44: 32 | AF44: 18 | AG44: 7 | AI44: 3 | AJ44: 2 | AL44: 4 | AM44: 5 | AP44: 10 | AR44: =IF(ISNUMBER(SMALL(#REF!,ROW()-2)),SMALL(#REF!,ROW()-2),"") ->  | AS44: 1 | AW44: 1 | BB44: 16 | BE44: 14 | BF44: 11 | BT44: 18 | BW44: 10 | BX44: 1 | BZ44: 1 | CF44: 6 | CH44: 4
C45: =CONCATENATE(B47,"A") -> 15A | D45: BARTŁOMIEJ LORBIECKI | E45: Zespół Szkolno-Przedszkolny w Szopie | F45: 20 | G45: 5 | H45: 9 | I45: 2 | J45: 6 | K45: 3 | L45: 0 | M45: 1 | N45: 17 | O45: =IF(ISBLANK(N45),"",IF(N45=0,$CF$2,CG45)) -> 2 | P45: =IF(ISNUMBER(O45),IF(ISNUMBER(O45),IF(ISNUMBER(O45),O45+G45+G46+G47+I45+I46+I47+K45+K46+K47+M45+M46+M47,""),""),"") -> 33 | Q45: =IF(ISNUMBER(P45),VLOOKUP(BQ45,BS:BT,2,FALSE),"") -> 10 | R45: 11 | S45: 23 | W45: 5 | X45: 3 | Y45: 1 | Z45: 2 | AA45: 111105102103101 | AB45: 116105101101109 | AC45: 33 | AF45: 18 | AG45: 7 | AI45: 6 | AJ45: 3 | AL45: 5 | AM45: 6 | AP45: 10 | AR45: =IF(ISNUMBER(SMALL(#REF!,ROW()-2)),SMALL(#REF!,ROW()-2),"") ->  | AS45: 1 | AU45: =IF(#REF!,#REF!+0,) ->  | AW45: 1 | AX45: =IF(ISNUMBER(AU45),VLOOKUP(AU45,AV:AW,2,FALSE),"") ->  | AZ45: =P45 -> 33 | BB45: 16 | BC45: =IF(ISNUMBER(AZ45),VLOOKUP(AZ45,BA:BB,2,FALSE),"") -> 8 | BE45: 16 | BF45: 12 | BI45: =P45 -> 33 | BJ45: =SUM(G45,G46,G47) -> 12 | BK45: =SUM(I45,I46,I47) -> 4 | BL45: =SUM(M45,M46,M47) -> 8 | BM45: =O45 -> 2 | BN45: =#REF! ->  | BO45: =SUM(K45,K46,K47) -> 7 | BP45: =#REF! ->  | BQ45: =IF(ISNUMBER(P45),CONCATENATE(BI45+100,BJ45+100,BK45+100,BO45+100,BL45+100,BM45+100)+0,"") -> 1.331121041e+17 | BR45: =IF(ISNUMBER(SMALL(BQ:BQ,ROW()-2)),SMALL(BQ:BQ,ROW()-2),"") ->  | BT45: 18 | BW45: 10 | BX45: 1 | BZ45: 2 | CF45: 5 | CG45: =VLOOKUP(N45,AO:AP,2,FALSE) -> 2 | CH45: 3
C46: =CONCATENATE(B47,"B") -> 15B | D46: PRZEMYSLAW BOBKOWSKI | F46: 22 | G46: 3 | H46: 10 | I46: 1 | J46: 3 | K46: 2 | L46: 5 | M46: 6 | R46: 12 | S46: 25 | W46: 3 | X46: 2 | Y46: 6 | Z46: 1 | AA46: 112103101102106 | AB46: 116106101104105 | AC46: 34 | AF46: 18 | AG46: 7 | AI46: 6 | AJ46: 3 | AL46: 5 | AM46: 6 | AP46: 10 | AR46: =IF(ISNUMBER(SMALL(#REF!,ROW()-2)),SMALL(#REF!,ROW()-2),"") ->  | AS46: 1 | AW46: 1 | BB46: 16 | BE46: 16 | BF46: 12 | BT46: 18 | BW46: 10 | BX46: 1 | BZ46: 1 | CF46: 3 | CH46: 2
B47: 15 | C47: =CONCATENATE(B47,"C") -> 15C | D47: MICHAŁ LORBIECKI | F47: 21 | G47: 4 | H47: 10 | I47: 1 | J47: 3 | K47: 2 | L47: 0 | M47: 1 | R47: 8 | S47: 13 | W47: 4 | X47: 2 | Y47: 1 | Z47: 1 | AA47: 108104101102101 | AB47: 116108101102105 | AC47: 35 | AF47: 18 | AG47: 7 | AI47: 6 | AJ47: 3 | AL47: 5 | AM47: 6 | AP47: 10 | AR47: =IF(ISNUMBER(SMALL(#REF!,ROW()-2)),SMALL(#REF!,ROW()-2),"") ->  | AS47: 1 | AW47: 1 | BB47: 16 | BE47: 16 | BF47: 12 | BT47: 18 | BW47: 9 | BX47: 2 | BZ47: 1 | CF47: 4 | CH47: 2
C48: =CONCATENATE(B50,"A") -> 16A | D48: NADJA KALISZ | E48: Szkoła Podstawowa w Krośnicy | F48: 20 | G48: 5 | H48: 10 | I48: 1 | J48: 0 | K48: 1 | L48: 1 | M48: 2 | N48: 18 | O48: =IF(ISBLANK(N48),"",IF(N48=0,$CF$2,CG48)) -> 1 | P48: =IF(ISNUMBER(O48),IF(ISNUMBER(O48),IF(ISNUMBER(O48),O48+G48+G49+G50+I48+I49+I50+K48+K49+K50+M48+M49+M50,""),""),"") -> 30 | Q48: =IF(ISNUMBER(P48),VLOOKUP(BQ48,BS:BT,2,FALSE),"") -> 8 | R48: 9 | S48: 16 | W48: 5 | X48: 1 | Y48: 2 | Z48: 1 | AA48: 109105101101102 | AB48: 117104101101111 | AC48: 36 | AF48: 18 | AG48: 7 | AI48: 6 | AJ48: 3 | AL48: 7 | AM48: 7 | AP48: 10 | AR48: =IF(ISNUMBER(SMALL(#REF!,ROW()-2)),SMALL(#REF!,ROW()-2),"") ->  | AS48: 1 | AU48: =IF(#REF!,#REF!+0,) ->  | AW48: 1 | AX48: =IF(ISNUMBER(AU48),VLOOKUP(AU48,AV:AW,2,FALSE),"") ->  | AZ48: =P48 -> 30 | BB48: 16 | BC48: =IF(ISNUMBER(AZ48),VLOOKUP(AZ48,BA:BB,2,FALSE),"") -> 6 | BE48: 17 | BF48: 13 | BI48: =P48 -> 30 | BJ48: =SUM(G48,G49,G50) -> 15 | BK48: =SUM(I48,I49,I50) -> 4 | BL48: =SUM(M48,M49,M50) -> 7 | BM48: =O48 -> 1 | BN48: =#REF! ->  | BO48: =SUM(K48,K49,K50) -> 3 | BP48: =#REF! ->  | BQ48: =IF(ISNUMBER(P48),CONCATENATE(BI48+100,BJ48+100,BK48+100,BO48+100,BL48+100,BM48+100)+0,"") -> 1.301151041e+17 | BR48: =IF(ISNUMBER(SMALL(BQ:BQ,ROW()-2)),SMALL(BQ:BQ,ROW()-2),"") ->  | BT48: 18 | BW48: 9 | BX48: 2 | BZ48: 1 | CF48: 5 | CG48: =VLOOKUP(N48,AO:AP,2,FALSE) -> 1
C49: =CONCATENATE(B50,"B") -> 16B | D49: MILENA HUREK | F49: 20 | G49: 5 | H49: 9 | I49: 2 | J49: 0 | K49: 1 | L49: 3 | M49: 4 | R49: 12 | S49: 26 | W49: 5 | X49: 1 | Y49: 4 | Z49: 2 | AA49: 112105102101104 | AB49: 117107102104104 | AC49: 37 | AF49: 18 | AG49: 7 | AI49: 6 | AJ49: 3 | AL49: 11 | AM49: 8 | AP49: 10 | AR49: =IF(ISNUMBER(SMALL(#REF!,ROW()-2)),SMALL(#REF!,ROW()-2),"") ->  | AS49: 1 | AW49: 1 | BB49: 16 | BE49: 17 | BF49: 13 | BT49: 18 | BW49: 9 | BX49: 2 | BZ49: 2 | CF49: 5
B50: 16 | C50: =CONCATENATE(B50,"C") -> 16C | D50: TOMASZ WARZECHA | F50: 20 | G50: 5 | H50: 10 | I50: 1 | J50: 0 | K50: 1 | L50: 0 | M50: 1 | R50: 8 | S50: 14 | W50: 5 | X50: 1 | Y50: 1 | Z50: 1 | AA50: 108105101101101 | AB50: 117110101102104 | AC50: 38 | AF50: 18 | AG50: 7 | AI50: 12 | AJ50: 4 | AL50: 12 | AM50: 9 | AP50: 10 | AR50: =IF(ISNUMBER(SMALL(#REF!,ROW()-2)),SMALL(#REF!,ROW()-2),"") ->  | AS50: 1 | AW50: 1 | BB50: 16 | BE50: 17 | BF50: 13 | BT50: 18 | BW50: 9 | BX50: 2 | BZ50: 1 | CF50: 5
C51: =CONCATENATE(B53,"A") -> 17A | D51: NATALIA NOWAK | E51: Szkoła Podstawowa w Stroniu | F51: 22 | G51: 3 | H51: 8 | I51: 3 | J51: 0 | K51: 1 | L51: 0 | M51: 1 | N51: 18 | O51: =IF(ISBLANK(N51),"",IF(N51=0,$CF$2,CG51)) -> 1 | P51: =IF(ISNUMBER(O51),IF(ISNUMBER(O51),IF(ISNUMBER(O51),O51+G51+G52+G53+I51+I52+I53+K51+K52+K53+M51+M52+M53,""),""),"") -> 27 | Q51: =IF(ISNUMBER(P51),VLOOKUP(BQ51,BS:BT,2,FALSE),"") -> 7 | R51: 8 | S51: 12 | W51: 3 | X51: 1 | Y51: 1 | Z51: 3 | AA51: 108103103101101 | AB51: 120107101104108 | AC51: 39 | AF51: 17 | AG51: 8 | AI51: 12 | AJ51: 4 | AL51: 15 | AM51: 10 | AP51: 10 | AR51: =IF(ISNUMBER(SMALL(#REF!,ROW()-2)),SMALL(#REF!,ROW()-2),"") ->  | AS51: 1 | AU51: =IF(#REF!,#REF!+0,) ->  | AW51: 1 | AX51: =IF(ISNUMBER(AU51),VLOOKUP(AU51,AV:AW,2,FALSE),"") ->  | AZ51: =P51 -> 27 | BB51: 16 | BC51: =IF(ISNUMBER(AZ51),VLOOKUP(AZ51,BA:BB,2,FALSE),"") -> 5 | BE51: 20 | BF51: 14 | BI51: =P51 -> 27 | BJ51: =SUM(G51,G52,G53) -> 15 | BK51: =SUM(I51,I52,I53) -> 5 | BL51: =SUM(M51,M52,M53) -> 3 | BM51: =O51 -> 1 | BN51: =#REF! ->  | BO51: =SUM(K51,K52,K53) -> 3 | BP51: =#REF! ->  | BQ51: =IF(ISNUMBER(P51),CONCATENATE(BI51+100,BJ51+100,BK51+100,BO51+100,BL51+100,BM51+100)+0,"") -> 1.271151051e+17 | BR51: =IF(ISNUMBER(SMALL(BQ:BQ,ROW()-2)),SMALL(BQ:BQ,ROW()-2),"") ->  | BT51: 18 | BW51: 9 | BX51: 2 | BZ51: 3 | CF51: 3 | CG51: =VLOOKUP(N51,AO:AP,2,FALSE) -> 1
C52: =CONCATENATE(B53,"B") -> 17B | D52: ADRIAN ODROWĄŻ | F52: 19 | G52: 6 | H52: 10 | I52: 1 | J52: 0 | K52: 1 | L52: 0 | M52: 1 | R52: 9 | S52: 17 | W52: 6 | X52: 1 | Y52: 1 | Z52: 1 | AA52: 109106101101101 | AB52: 121109102104106 | AC52: 40 | AF52: 16 | AG52: 9 | AI52: 12 | AJ52: 4 | AL52: 16 | AM52: 11 | AP52: 10 | AR52: =IF(ISNUMBER(SMALL(#REF!,ROW()-2)),SMALL(#REF!,ROW()-2),"") ->  | AS52: 1 | AW52: 1 | BB52: 16 | BE52: 21 | BF52: 15 | BT52: 18 | BW52: 8 | BX52: 3 | BZ52: 1 | CF52: 6
B53: 17 | C53: =CONCATENATE(B53,"C") -> 17C | D53: JAKUB KLIMECZKO | F53: 19 | G53: 6 | H53: 10 | I53: 1 | J53: 0 | K53: 1 | L53: 0 | M53: 1 | R53: 9 | S53: 17 | W53: 6 | X53: 1 | Y53: 1 | Z53: 1 | AA53: 109106101101101 | AB53: 122107101102112 | AC53: 41 | AF53: 14 | AG53: 10 | AI53: 12 | AJ53: 4 | AL53: 18 | AM53: 12 | AP53: 10 | AR53: =IF(ISNUMBER(SMALL(#REF!,ROW()-2)),SMALL(#REF!,ROW()-2),"") ->  | AS53: 1 | AW53: 1 | BB53: 16 | BE53: 22 | BF53: 16 | BT53: 18 | BW53: 8 | BX53: 3 | BZ53: 1 | CF53: 6
C54: =CONCATENATE(B56,"A") -> 18A | O54: =IF(ISBLANK(N54),"",IF(N54=0,$CF$2,CG54)) ->  | P54: =IF(ISNUMBER(O54),IF(ISNUMBER(O54),IF(ISNUMBER(O54),O54+G54+G55+G56+I54+I55+I56+K54+K55+K56+M54+M55+M56,""),""),"") ->  | Q54: =IF(ISNUMBER(P54),VLOOKUP(BQ54,BS:BT,2,FALSE),"") ->  | AC54: 42 | AG54: 11 | AJ54: 5 | AM54: 13 | AP54: 10 | AR54: =IF(ISNUMBER(SMALL(#REF!,ROW()-2)),SMALL(#REF!,ROW()-2),"") ->  | AS54: 1 | AU54: =IF(#REF!,#REF!+0,) ->  | AW54: 1 | AX54: =IF(ISNUMBER(AU54),VLOOKUP(AU54,AV:AW,2,FALSE),"") ->  | AZ54: =P54 ->  | BB54: 16 | BC54: =IF(ISNUMBER(AZ54),VLOOKUP(AZ54,BA:BB,2,FALSE),"") ->  | BF54: 17 | BI54: =P54 ->  | BJ54: =SUM(G54,G55,G56) -> 0 | BK54: =SUM(I54,I55,I56) -> 0 | BL54: =SUM(M54,M55,M56) -> 0 | BM54: =O54 ->  | BN54: =#REF! ->  | BO54: =SUM(K54,K55,K56) -> 0 | BP54: =#REF! ->  | BQ54: =IF(ISNUMBER(P54),CONCATENATE(BI54+100,BJ54+100,BK54+100,BO54+100,BL54+100,BM54+100)+0,"") ->  | BR54: =IF(ISNUMBER(SMALL(BQ:BQ,ROW()-2)),SMALL(BQ:BQ,ROW()-2),"") ->  | BT54: 18 | BX54: 4 | CG54: =VLOOKUP(N54,AO:AP,2,FALSE) -> 
C55: =CONCATENATE(B56,"B") -> 18B | AC55: 42 | AG55: 11 | AJ55: 5 | AM55: 13 | AP55: 10 | AR55: =IF(ISNUMBER(SMALL(#REF!,ROW()-2)),SMALL(#REF!,ROW()-2),"") ->  | AS55: 1 | BB55: 16 | BF55: 17 | BT55: 18 | BX55: 4
B56: 18 | C56: =CONCATENATE(B56,"C") -> 18C | AC56: 42 | AG56: 11 | AJ56: 5 | AM56: 13 | AP56: 10 | AR56: =IF(ISNUMBER(SMALL(#REF!,ROW()-2)),SMALL(#REF!,ROW()-2),"") ->  | AS56: 1 | BB56: 16 | BF56: 17 | BT56: 18 | BX56: 4
C57: =CONCATENATE(B59,"A") -> 19A | O57: =IF(ISBLANK(N57),"",IF(N57=0,$CF$2,CG57)) ->  | P57: =IF(ISNUMBER(O57),IF(ISNUMBER(O57),IF(ISNUMBER(O57),O57+G57+G58+G59+I57+I58+I59+K57+K58+K59+M57+M58+M59,""),""),"") ->  | Q57: =IF(ISNUMBER(P57),VLOOKUP(BQ57,BS:BT,2,FALSE),"") ->  | AC57: 42 | AG57: 11 | AJ57: 5 | AM57: 13 | AP57: 10 | AR57: =IF(ISNUMBER(SMALL(#REF!,ROW()-2)),SMALL(#REF!,ROW()-2),"") ->  | AS57: 1 | AU57: =IF(#REF!,#REF!+0,) ->  | AX57: =IF(ISNUMBER(AU57),VLOOKUP(AU57,AV:AW,2,FALSE),"") ->  | AZ57: =P57 ->  | BB57: 16 | BC57: =IF(ISNUMBER(AZ57),VLOOKUP(AZ57,BA:BB,2,FALSE),"") ->  | BF57: 17 | BI57: =P57 ->  | BJ57: =SUM(G57,G58,G59) -> 0 | BK57: =SUM(I57,I58,I59) -> 0 | BL57: =SUM(M57,M58,M59) -> 0 | BM57: =O57 ->  | BN57: =#REF! ->  | BO57: =SUM(K57,K58,K59) -> 0 | BP57: =#REF! ->  | BQ57: =IF(ISNUMBER(P57),CONCATENATE(BI57+100,BJ57+100,BK57+100,BO57+100,BL57+100,BM57+100)+0,"") ->  | BR57: =IF(ISNUMBER(SMALL(BQ:BQ,ROW()-2)),SMALL(BQ:BQ,ROW()-2),"") ->  | BT57: 18 | BX57: 4 | CG57: =VLOOKUP(N57,AO:AP,2,FALSE) -> 
C58: =CONCATENATE(B59,"B") -> 19B | AC58: 42 | AG58: 11 | AJ58: 5 | AM58: 13 | AP58: 10 | AR58: =IF(ISNUMBER(SMALL(#REF!,ROW()-2)),SMALL(#REF!,ROW()-2),"") ->  | AS58: 1 | BB58: 16 | BF58: 17 | BT58: 18 | BX58: 4
B59: 19 | C59: =CONCATENATE(B59,"C") -> 19C | AC59: 42 | AG59: 11 | AJ59: 5 | AM59: 13 | AP59: 10 | AR59: =IF(ISNUMBER(SMALL(#REF!,ROW()-2)),SMALL(#REF!,ROW()-2),"") ->  | AS59: 1 | BB59: 16 | BF59: 17 | BT59: 18 | BX59: 4
C60: =CONCATENATE(B62,"A") -> 20A | O60: =IF(ISBLANK(N60),"",IF(N60=0,$CF$2,CG60)) ->  | P60: =IF(ISNUMBER(O60),IF(ISNUMBER(O60),IF(ISNUMBER(O60),O60+G60+G61+G62+I60+I61+I62+K60+K61+K62+M60+M61+M62,""),""),"") ->  | Q60: =IF(ISNUMBER(P60),VLOOKUP(BQ60,BS:BT,2,FALSE),"") ->  | AC60: 42 | AG60: 11 | AJ60: 5 | AM60: 13 | AP60: 10 | AR60: =IF(ISNUMBER(SMALL(#REF!,ROW()-2)),SMALL(#REF!,ROW()-2),"") ->  | AS60: 1 | AU60: =IF(#REF!,#REF!+0,) ->  | AX60: =IF(ISNUMBER(AU60),VLOOKUP(AU60,AV:AW,2,FALSE),"") ->  | AZ60: =P60 ->  | BB60: 16 | BC60: =IF(ISNUMBER(AZ60),VLOOKUP(AZ60,BA:BB,2,FALSE),"") ->  | BF60: 17 | BI60: =P60 ->  | BJ60: =SUM(G60,G61,G62) -> 0 | BK60: =SUM(I60,I61,I62) -> 0 | BL60: =SUM(M60,M61,M62) -> 0 | BM60: =O60 ->  | BN60: =#REF! ->  | BO60: =SUM(K60,K61,K62) -> 0 | BP60: =#REF! ->  | BQ60: =IF(ISNUMBER(P60),CONCATENATE(BI60+100,BJ60+100,BK60+100,BO60+100,BL60+100,BM60+100)+0,"") ->  | BR60: =IF(ISNUMBER(SMALL(BQ:BQ,ROW()-2)),SMALL(BQ:BQ,ROW()-2),"") ->  | BT60: 18 | BX60: 4 | CG60: =VLOOKUP(N60,AO:AP,2,FALSE) -> 
C61: =CONCATENATE(B62,"B") -> 20B | AC61: 42 | AG61: 11 | AJ61: 5 | AM61: 13 | AP61: 10 | AR61: =IF(ISNUMBER(SMALL(#REF!,ROW()-2)),SMALL(#REF!,ROW()-2),"") ->  | AS61: 1 | BB61: 16 | BF61: 17 | BT61: 18 | BX61: 4
B62: 20 | C62: =CONCATENATE(B62,"C") -> 20C | AC62: 42 | AG62: 11 | AJ62: 5 | AM62: 13 | AP62: 10 | AR62: =IF(ISNUMBER(SMALL(#REF!,ROW()-2)),SMALL(#REF!,ROW()-2),"") ->  | AS62: 1 | BB62: 16 | BF62: 17 | BT62: 18 | BX62: 4
C63: =CONCATENATE(B65,"A") -> 21A | O63: =IF(ISBLANK(N63),"",IF(N63=0,$CF$2,CG63)) ->  | P63: =IF(ISNUMBER(O63),IF(ISNUMBER(O63),IF(ISNUMBER(O63),O63+G63+G64+G65+I63+I64+I65+K63+K64+K65+M63+M64+M65,""),""),"") ->  | Q63: =IF(ISNUMBER(P63),VLOOKUP(BQ63,BS:BT,2,FALSE),"") ->  | AC63: 42 | AG63: 11 | AJ63: 5 | AM63: 13 | AP63: 10 | AR63: =IF(ISNUMBER(SMALL(#REF!,ROW()-2)),SMALL(#REF!,ROW()-2),"") ->  | AS63: 1 | AU63: =IF(#REF!,#REF!+0,) ->  | AX63: =IF(ISNUMBER(AU63),VLOOKUP(AU63,AV:AW,2,FALSE),"") ->  | AZ63: =P63 ->  | BB63: 16 | BC63: =IF(ISNUMBER(AZ63),VLOOKUP(AZ63,BA:BB,2,FALSE),"") ->  | BF63: 17 | BI63: =P63 ->  | BJ63: =SUM(G63,G64,G65) -> 0 | BK63: =SUM(I63,I64,I65) -> 0 | BL63: =SUM(M63,M64,M65) -> 0 | BM63: =O63 ->  | BN63: =#REF! ->  | BO63: =SUM(K63,K64,K65) -> 0 | BP63: =#REF! ->  | BQ63: =IF(ISNUMBER(P63),CONCATENATE(BI63+100,BJ63+100,BK63+100,BO63+100,BL63+100,BM63+100)+0,"") ->  | BR63: =IF(ISNUMBER(SMALL(BQ:BQ,ROW()-2)),SMALL(BQ:BQ,ROW()-2),"") ->  | BT63: 18 | BX63: 4 | CG63: =VLOOKUP(N63,AO:AP,2,FALSE) -> 
C64: =CONCATENATE(B65,"B") -> 21B | AC64: 42 | AG64: 11 | AJ64: 5 | AM64: 13 | AP64: 10 | AR64: =IF(ISNUMBER(SMALL(#REF!,ROW()-2)),SMALL(#REF!,ROW()-2),"") ->  | AS64: 1 | BB64: 16 | BF64: 17 | BT64: 18 | BX64: 4
B65: 21 | C65: =CONCATENATE(B65,"C") -> 21C | AC65: 42 | AG65: 11 | AJ65: 5 | AM65: 13 | AP65: 10 | AR65: =IF(ISNUMBER(SMALL(#REF!,ROW()-2)),SMALL(#REF!,ROW()-2),"") ->  | AS65: 1 | BB65: 16 | BF65: 17 | BT65: 18 | BX65: 4
C66: =CONCATENATE(B68,"A") -> 22A | O66: =IF(ISBLANK(N66),"",IF(N66=0,$CF$2,CG66)) ->  | P66: =IF(ISNUMBER(O66),IF(ISNUMBER(O66),IF(ISNUMBER(O66),O66+G66+G67+G68+I66+I67+I68+K66+K67+K68+M66+M67+M68,""),""),"") ->  | Q66: =IF(ISNUMBER(P66),VLOOKUP(BQ66,BS:BT,2,FALSE),"") ->  | AC66: 42 | AG66: 11 | AJ66: 5 | AM66: 13 | AP66: 10 | AR66: =IF(ISNUMBER(SMALL(#REF!,ROW()-2)),SMALL(#REF!,ROW()-2),"") ->  | AS66: 1 | AU66: =IF(#REF!,#REF!+0,) ->  | AX66: =IF(ISNUMBER(AU66),VLOOKUP(AU66,AV:AW,2,FALSE),"") ->  | AZ66: =P66 ->  | BB66: 16 | BC66: =IF(ISNUMBER(AZ66),VLOOKUP(AZ66,BA:BB,2,FALSE),"") ->  | BF66: 17 | BI66: =P66 ->  | BJ66: =SUM(G66,G67,G68) -> 0 | BK66: =SUM(I66,I67,I68) -> 0 | BL66: =SUM(M66,M67,M68) -> 0 | BM66: =O66 ->  | BN66: =#REF! ->  | BO66: =SUM(K66,K67,K68) -> 0 | BP66: =#REF! ->  | BQ66: =IF(ISNUMBER(P66),CONCATENATE(BI66+100,BJ66+100,BK66+100,BO66+100,BL66+100,BM66+100)+0,"") ->  | BR66: =IF(ISNUMBER(SMALL(BQ:BQ,ROW()-2)),SMALL(BQ:BQ,ROW()-2),"") ->  | BT66: 18 | BX66: 4 | CG66: =VLOOKUP(N66,AO:AP,2,FALSE) -> 
B67: =IF(MOD(ROW(),3)=2,((ROW()+1)/3)-1,"") ->  | C67: =CONCATENATE(B68,"B") -> 22B | G67: =IF(ISBLANK(F67),"",IF(F67=0,$CE$2,CF67)) ->  | M67: =IF(ISNUMBER(L67),VLOOKUP(L67,AL:AM,2,FALSE),"") ->  | AC67: 42 | AF67: =IF(ISNUMBER(LARGE(F:F,ROW()-2)),LARGE(F:F,ROW()-2),"") ->  | AG67: 11 | AI67: =IF(ISNUMBER(SMALL(J:J,ROW()-2)),SMALL(J:J,ROW()-2),"") ->  | AJ67: 5 | AL67: =IF(ISNUMBER(SMALL(L:L,ROW()-2)),SMALL(L:L,ROW()-2),"") ->  | AM67: 13 | AO67: =IF(ISNUMBER(LARGE(N:N,ROW()-2)),LARGE(N:N,ROW()-2),"") ->  | AP67: 10 | AR67: =IF(ISNUMBER(SMALL(#REF!,ROW()-2)),SMALL(#REF!,ROW()-2),"") ->  | AS67: 1 | AV67: =IF(ISNUMBER(LARGE(AU:AU,ROW()-2)),LARGE(AU:AU,ROW()-2),"") ->  | BA67: =IF(ISNUMBER(SMALL(P:P,ROW()-2)),SMALL(P:P,ROW()-2),"") ->  | BB67: 16 | BF67: 17 | BT67: 18 | BW67: =IF(ISNUMBER(LARGE(H:H,ROW()-2)),LARGE(H:H,ROW()-2),"") ->  | BX67: 4
B68: 22 | C68: =CONCATENATE(B68,"C") -> 22C | I68: =IF(ISBLANK(H68),"",IF(H68=0,$BY$2,BZ68)) ->  | K68: =IF(ISBLANK(J68),"",IF(J68=0,$CJ$2,CH68)) ->  | R68: =IF(ISNUMBER(G68),IF(ISNUMBER(K68),IF(ISNUMBER(M68),SUM(G68,I68,K68,M68),""),""),"") ->  | Z68: =I68 ->  | AA68: =IF(ISNUMBER(R68),CONCATENATE(R68+100,W68+100,Z68+100,X68+100,Y68+100)+0,"") ->  | AC68: 42 | AG68: =IF(AF67<>AF68,AG67+1,AG67) -> 11 | AJ68: 5 | AM68: 13 | AP68: 10 | AR68: =IF(ISNUMBER(SMALL(#REF!,ROW()-2)),SMALL(#REF!,ROW()-2),"") ->  | AS68: 1 | BB68: =IF(BA67<>BA68,BB67+1,BB67) -> 16 | BE68: =IF(ISNUMBER(SMALL(R:R,ROW()-2)),SMALL(R:R,ROW()-2),"") ->  | BF68: =IF(BE67<>BE68,BF67+1,BF67) -> 17 | BS68: =IF(ISNUMBER(SMALL(BQ:BQ,ROW()-2)),SMALL(BQ:BQ,ROW()-2),"") ->  | BT68: =IF(BS67<>BS68,BT67+1,BT67) -> 18 | BX68: =IF(BW67<>BW68,BX67+1,BX67) -> 4 | BZ68: =VLOOKUP(H68,BW:BX,2,FALSE) ->  | CF68: =VLOOKUP(F68,AF:AG,2,FALSE) ->  | CH68: =IF(ISNUMBER(J68),VLOOKUP(J68,AI:AJ,2,FALSE),"") -> 
C69: =CONCATENATE(B71,"A") -> 23A | O69: =IF(ISBLANK(N69),"",IF(N69=0,$CF$2,CG69)) ->  | P69: =IF(ISNUMBER(O69),IF(ISNUMBER(O69),IF(ISNUMBER(O69),O69+G69+G70+G71+I69+I70+I71+K69+K70+K71+M69+M70+M71,""),""),"") ->  | Q69: =IF(ISNUMBER(P69),VLOOKUP(BQ69,BS:BT,2,FALSE),"") ->  | W69: =G69 ->  | X69: =K69 ->  | Y69: =M69 ->  | AB69: =IF(ISNUMBER(SMALL(AA:AA,ROW()-2)),SMALL(AA:AA,ROW()-2),"") ->  | AC69: =IF(AB68<>AB69,AC68+1,AC68) -> 42 | AG69: 11 | AJ69: =IF(AI68<>AI69,AJ68+1,AJ68) -> 5 | AM69: =IF(AL68<>AL69,AM68+1,AM68) -> 13 | AP69: =IF(AO68<>AO69,AP68+1,AP68) -> 10 | AR69: =IF(ISNUMBER(SMALL(#REF!,ROW()-2)),SMALL(#REF!,ROW()-2),"") ->  | AS69: =IF(AR68<>AR69,AS68+1,AS68) -> 1 | AU69: =IF(#REF!,#REF!+0,) ->  | AX69: =IF(ISNUMBER(AU69),VLOOKUP(AU69,AV:AW,2,FALSE),"") ->  | AZ69: =P69 ->  | BB69: 16 | BC69: =IF(ISNUMBER(AZ69),VLOOKUP(AZ69,BA:BB,2,FALSE),"") ->  | BF69: 17 | BI69: =P69 ->  | BJ69: =SUM(G69,G70,G71) -> 0 | BK69: =SUM(I69,I70,I71) -> 0 | BL69: =SUM(M69,M70,M71) -> 0 | BM69: =O69 ->  | BN69: =#REF! ->  | BO69: =SUM(K69,K70,K71) -> 0 | BP69: =#REF! ->  | BQ69: =IF(ISNUMBER(P69),CONCATENATE(BI69+100,BJ69+100,BK69+100,BO69+100,BL69+100,BM69+100)+0,"") ->  | BR69: =IF(ISNUMBER(SMALL(BQ:BQ,ROW()-2)),SMALL(BQ:BQ,ROW()-2),"") ->  | BT69: 18 | BX69: 4 | CG69: =VLOOKUP(N69,AO:AP,2,FALSE) -> 
C70: =CONCATENATE(B71,"B") -> 23B | AC70: 42 | AG70: 11 | AJ70: 5 | AM70: 13 | AP70: 10 | AR70: =IF(ISNUMBER(SMALL(#REF!,ROW()-2)),SMALL(#REF!,ROW()-2),"") ->  | AS70: 1 | BB70: 16 | BF70: 17 | BT70: 18 | BX70: 4
B71: 23 | C71: =CONCATENATE(B71,"C") -> 23C | AC71: 42 | AG71: 11 | AJ71: 5 | AM71: 13 | AP71: 10 | AR71: =IF(ISNUMBER(SMALL(#REF!,ROW()-2)),SMALL(#REF!,ROW()-2),"") ->  | AS71: 1 | BB71: 16 | BF71: 17 | BT71: 18 | BX71: 4
C72: =CONCATENATE(B74,"A") -> 24A | O72: =IF(ISBLANK(N72),"",IF(N72=0,$CF$2,CG72)) ->  | P72: =IF(ISNUMBER(O72),IF(ISNUMBER(O72),IF(ISNUMBER(O72),O72+G72+G73+G74+I72+I73+I74+K72+K73+K74+M72+M73+M74,""),""),"") ->  | Q72: =IF(ISNUMBER(P72),VLOOKUP(BQ72,BS:BT,2,FALSE),"") ->  | AC72: 42 | AG72: 11 | AJ72: 5 | AM72: 13 | AP72: 10 | AR72: =IF(ISNUMBER(SMALL(#REF!,ROW()-2)),SMALL(#REF!,ROW()-2),"") ->  | AS72: 1 | AU72: =IF(#REF!,#REF!+0,) ->  | AX72: =IF(ISNUMBER(AU72),VLOOKUP(AU72,AV:AW,2,FALSE),"") ->  | AZ72: =P72 ->  | BB72: 16 | BC72: =IF(ISNUMBER(AZ72),VLOOKUP(AZ72,BA:BB,2,FALSE),"") ->  | BF72: 17 | BI72: =P72 ->  | BJ72: =SUM(G72,G73,G74) -> 0 | BK72: =SUM(I72,I73,I74) -> 0 | BL72: =SUM(M72,M73,M74) -> 0 | BM72: =O72 ->  | BN72: =#REF! ->  | BO72: =SUM(K72,K73,K74) -> 0 | BP72: =#REF! ->  | BQ72: =IF(ISNUMBER(P72),CONCATENATE(BI72+100,BJ72+100,BK72+100,BO72+100,BL72+100,BM72+100)+0,"") ->  | BR72: =IF(ISNUMBER(SMALL(BQ:BQ,ROW()-2)),SMALL(BQ:BQ,ROW()-2),"") ->  | BT72: 18 | BX72: 4 | CG72: =VLOOKUP(N72,AO:AP,2,FALSE) -> 
C73: =CONCATENATE(B74,"B") -> 24B | S73: =IF(ISNUMBER(R73),VLOOKUP(AA73,AB:AC,2,FALSE),"") ->  | AC73: 42 | AG73: 11 | AJ73: 5 | AM73: 13 | AP73: 10 | AR73: =IF(ISNUMBER(SMALL(#REF!,ROW()-2)),SMALL(#REF!,ROW()-2),"") ->  | AS73: 1 | BB73: 16 | BF73: 17 | BT73: 18 | BX73: 4
B74: 24 | C74: =CONCATENATE(B74,"C") -> 24C | AC74: 42 | AG74: 11 | AJ74: 5 | AM74: 13 | AP74: 10 | AR74: =IF(ISNUMBER(SMALL(#REF!,ROW()-2)),SMALL(#REF!,ROW()-2),"") ->  | AS74: 1 | BB74: 16 | BF74: 17 | BT74: 18 | BX74: 4
C75: =CONCATENATE(B77,"A") -> 25A | O75: =IF(ISBLANK(N75),"",IF(N75=0,$CF$2,CG75)) ->  | P75: =IF(ISNUMBER(O75),IF(ISNUMBER(O75),IF(ISNUMBER(O75),O75+G75+G76+G77+I75+I76+I77+K75+K76+K77+M75+M76+M77,""),""),"") ->  | Q75: =IF(ISNUMBER(P75),VLOOKUP(BQ75,BS:BT,2,FALSE),"") ->  | AC75: 42 | AG75: 11 | AJ75: 5 | AM75: 13 | AP75: 10 | AR75: =IF(ISNUMBER(SMALL(#REF!,ROW()-2)),SMALL(#REF!,ROW()-2),"") ->  | AS75: 1 | AU75: =IF(#REF!,#REF!+0,) ->  | AX75: =IF(ISNUMBER(AU75),VLOOKUP(AU75,AV:AW,2,FALSE),"") ->  | AZ75: =P75 ->  | BB75: 16 | BC75: =IF(ISNUMBER(AZ75),VLOOKUP(AZ75,BA:BB,2,FALSE),"") ->  | BF75: 17 | BI75: =P75 ->  | BJ75: =SUM(G75,G76,G77) -> 0 | BK75: =SUM(I75,I76,I77) -> 0 | BL75: =SUM(M75,M76,M77) -> 0 | BM75: =O75 ->  | BN75: =#REF! ->  | BO75: =SUM(K75,K76,K77) -> 0 | BP75: =#REF! ->  | BQ75: =IF(ISNUMBER(P75),CONCATENATE(BI75+100,BJ75+100,BK75+100,BO75+100,BL75+100,BM75+100)+0,"") ->  | BR75: =IF(ISNUMBER(SMALL(BQ:BQ,ROW()-2)),SMALL(BQ:BQ,ROW()-2),"") ->  | BT75: 18 | BX75: 4 | CG75: =VLOOKUP(N75,AO:AP,2,FALSE) -> 
C76: =CONCATENATE(B77,"B") -> 25B | AC76: 42 | AG76: 11 | AJ76: 5 | AM76: 13 | AP76: 10 | AR76: =IF(ISNUMBER(SMALL(#REF!,ROW()-2)),SMALL(#REF!,ROW()-2),"") ->  | AS76: 1 | BB76: 16 | BF76: 17 | BT76: 18 | BX76: 4
B77: 25 | C77: =CONCATENATE(B77,"C") -> 25C | AC77: 42 | AG77: 11 | AJ77: 5 | AM77: 13 | AP77: 10 | AR77: =IF(ISNUMBER(SMALL(#REF!,ROW()-2)),SMALL(#REF!,ROW()-2),"") ->  | AS77: 1 | BB77: 16 | BF77: 17 | BT77: 18 | BX77: 4
C78: =CONCATENATE(B80,"A") -> 26A | O78: =IF(ISBLANK(N78),"",IF(N78=0,$CF$2,CG78)) ->  | P78: =IF(ISNUMBER(O78),IF(ISNUMBER(O78),IF(ISNUMBER(O78),O78+G78+G79+G80+I78+I79+I80+K78+K79+K80+M78+M79+M80,""),""),"") ->  | Q78: =IF(ISNUMBER(P78),VLOOKUP(BQ78,BS:BT,2,FALSE),"") ->  | AC78: 42 | AG78: 11 | AJ78: 5 | AM78: 13 | AP78: 10 | AR78: =IF(ISNUMBER(SMALL(#REF!,ROW()-2)),SMALL(#REF!,ROW()-2),"") ->  | AS78: 1 | AU78: =IF(#REF!,#REF!+0,) ->  | AX78: =IF(ISNUMBER(AU78),VLOOKUP(AU78,AV:AW,2,FALSE),"") ->  | AZ78: =P78 ->  | BB78: 16 | BC78: =IF(ISNUMBER(AZ78),VLOOKUP(AZ78,BA:BB,2,FALSE),"") ->  | BF78: 17 | BI78: =P78 ->  | BJ78: =SUM(G78,G79,G80) -> 0 | BK78: =SUM(I78,I79,I80) -> 0 | BL78: =SUM(M78,M79,M80) -> 0 | BM78: =O78 ->  | BN78: =#REF! ->  | BO78: =SUM(K78,K79,K80) -> 0 | BP78: =#REF! ->  | BQ78: =IF(ISNUMBER(P78),CONCATENATE(BI78+100,BJ78+100,BK78+100,BO78+100,BL78+100,BM78+100)+0,"") ->  | BR78: =IF(ISNUMBER(SMALL(BQ:BQ,ROW()-2)),SMALL(BQ:BQ,ROW()-2),"") ->  | BT78: 18 | BX78: 4 | CG78: =VLOOKUP(N78,AO:AP,2,FALSE) -> 
C79: =CONCATENATE(B80,"B") -> 26B | AC79: 42 | AG79: 11 | AJ79: 5 | AM79: 13 | AP79: 10 | AR79: =IF(ISNUMBER(SMALL(#REF!,ROW()-2)),SMALL(#REF!,ROW()-2),"") ->  | AS79: 1 | BB79: 16 | BF79: 17 | BT79: 18 | BX79: 4
B80: 26 | C80: =CONCATENATE(B80,"C") -> 26C | AC80: 42 | AG80: 11 | AJ80: 5 | AM80: 13 | AP80: 10 | AR80: =IF(ISNUMBER(SMALL(#REF!,ROW()-2)),SMALL(#REF!,ROW()-2),"") ->  | AS80: 1 | BB80: 16 | BF80: 17 | BT80: 18 | BX80: 4
C81: =CONCATENATE(B83,"A") -> 27A | O81: =IF(ISBLANK(N81),"",IF(N81=0,$CF$2,CG81)) ->  | P81: =IF(ISNUMBER(O81),IF(ISNUMBER(O81),IF(ISNUMBER(O81),O81+G81+G82+G83+I81+I82+I83+K81+K82+K83+M81+M82+M83,""),""),"") ->  | Q81: =IF(ISNUMBER(P81),VLOOKUP(BQ81,BS:BT,2,FALSE),"") ->  | AC81: 42 | AG81: 11 | AJ81: 5 | AM81: 13 | AP81: 10 | AR81: =IF(ISNUMBER(SMALL(#REF!,ROW()-2)),SMALL(#REF!,ROW()-2),"") ->  | AS81: 1 | AU81: =IF(#REF!,#REF!+0,) ->  | AX81: =IF(ISNUMBER(AU81),VLOOKUP(AU81,AV:AW,2,FALSE),"") ->  | AZ81: =P81 ->  | BB81: 16 | BC81: =IF(ISNUMBER(AZ81),VLOOKUP(AZ81,BA:BB,2,FALSE),"") ->  | BF81: 17 | BI81: =P81 ->  | BJ81: =SUM(G81,G82,G83) -> 0 | BK81: =SUM(I81,I82,I83) -> 0 | BL81: =SUM(M81,M82,M83) -> 0 | BM81: =O81 ->  | BN81: =#REF! ->  | BO81: =SUM(K81,K82,K83) -> 0 | BP81: =#REF! ->  | BQ81: =IF(ISNUMBER(P81),CONCATENATE(BI81+100,BJ81+100,BK81+100,BO81+100,BL81+100,BM81+100)+0,"") ->  | BR81: =IF(ISNUMBER(SMALL(BQ:BQ,ROW()-2)),SMALL(BQ:BQ,ROW()-2),"") ->  | BT81: 18 | BX81: 4 | CG81: =VLOOKUP(N81,AO:AP,2,FALSE) -> 
C82: =CONCATENATE(B83,"B") -> 27B | AC82: 42 | AG82: 11 | AJ82: 5 | AM82: 13 | AP82: 10 | AR82: =IF(ISNUMBER(SMALL(#REF!,ROW()-2)),SMALL(#REF!,ROW()-2),"") ->  | AS82: 1 | BB82: 16 | BF82: 17 | BT82: 18 | BX82: 4
B83: 27 | C83: =CONCATENATE(B83,"C") -> 27C | AC83: 42 | AG83: 11 | AJ83: 5 | AM83: 13 | AP83: 10 | AR83: =IF(ISNUMBER(SMALL(#REF!,ROW()-2)),SMALL(#REF!,ROW()-2),"") ->  | AS83: 1 | BB83: 16 | BF83: 17 | BT83: 18 | BX83: 4
C84: =CONCATENATE(B86,"A") -> 28A | O84: =IF(ISBLANK(N84),"",IF(N84=0,$CF$2,CG84)) ->  | P84: =IF(ISNUMBER(O84),IF(ISNUMBER(O84),IF(ISNUMBER(O84),O84+G84+G85+G86+I84+I85+I86+K84+K85+K86+M84+M85+M86,""),""),"") ->  | Q84: =IF(ISNUMBER(P84),VLOOKUP(BQ84,BS:BT,2,FALSE),"") ->  | AC84: 42 | AG84: 11 | AJ84: 5 | AM84: 13 | AP84: 10 | AR84: =IF(ISNUMBER(SMALL(#REF!,ROW()-2)),SMALL(#REF!,ROW()-2),"") ->  | AS84: 1 | AU84: =IF(#REF!,#REF!+0,) ->  | AX84: =IF(ISNUMBER(AU84),VLOOKUP(AU84,AV:AW,2,FALSE),"") ->  | AZ84: =P84 ->  | BB84: 16 | BC84: =IF(ISNUMBER(AZ84),VLOOKUP(AZ84,BA:BB,2,FALSE),"") ->  | BF84: 17 | BI84: =P84 ->  | BJ84: =SUM(G84,G85,G86) -> 0 | BK84: =SUM(I84,I85,I86) -> 0 | BL84: =SUM(M84,M85,M86) -> 0 | BM84: =O84 ->  | BN84: =#REF! ->  | BO84: =SUM(K84,K85,K86) -> 0 | BP84: =#REF! ->  | BQ84: =IF(ISNUMBER(P84),CONCATENATE(BI84+100,BJ84+100,BK84+100,BO84+100,BL84+100,BM84+100)+0,"") ->  | BR84: =IF(ISNUMBER(SMALL(BQ:BQ,ROW()-2)),SMALL(BQ:BQ,ROW()-2),"") ->  | BT84: 18 | BX84: 4 | CG84: =VLOOKUP(N84,AO:AP,2,FALSE) -> 
C85: =CONCATENATE(B86,"B") -> 28B | AC85: 42 | AG85: 11 | AJ85: 5 | AM85: 13 | AP85: 10 | AR85: =IF(ISNUMBER(SMALL(#REF!,ROW()-2)),SMALL(#REF!,ROW()-2),"") ->  | AS85: 1 | BB85: 16 | BF85: 17 | BT85: 18 | BX85: 4
B86: 28 | C86: =CONCATENATE(B86,"C") -> 28C | AC86: 42 | AG86: 11 | AJ86: 5 | AM86: 13 | AP86: 10 | AR86: =IF(ISNUMBER(SMALL(#REF!,ROW()-2)),SMALL(#REF!,ROW()-2),"") ->  | AS86: 1 | BB86: 16 | BF86: 17 | BT86: 18 | BX86: 4
C87: =CONCATENATE(B89,"A") -> 29A | O87: =IF(ISBLANK(N87),"",IF(N87=0,$CF$2,CG87)) ->  | P87: =IF(ISNUMBER(O87),IF(ISNUMBER(O87),IF(ISNUMBER(O87),O87+G87+G88+G89+I87+I88+I89+K87+K88+K89+M87+M88+M89,""),""),"") ->  | Q87: =IF(ISNUMBER(P87),VLOOKUP(BQ87,BS:BT,2,FALSE),"") ->  | AC87: 42 | AG87: 11 | AJ87: 5 | AM87: 13 | AP87: 10 | AR87: =IF(ISNUMBER(SMALL(#REF!,ROW()-2)),SMALL(#REF!,ROW()-2),"") ->  | AS87: 1 | AU87: =IF(#REF!,#REF!+0,) ->  | AX87: =IF(ISNUMBER(AU87),VLOOKUP(AU87,AV:AW,2,FALSE),"") ->  | AZ87: =P87 ->  | BB87: 16 | BC87: =IF(ISNUMBER(AZ87),VLOOKUP(AZ87,BA:BB,2,FALSE),"") ->  | BF87: 17 | BI87: =P87 ->  | BJ87: =SUM(G87,G88,G89) -> 0 | BK87: =SUM(I87,I88,I89) -> 0 | BL87: =SUM(M87,M88,M89) -> 0 | BM87: =O87 ->  | BN87: =#REF! ->  | BO87: =SUM(K87,K88,K89) -> 0 | BP87: =#REF! ->  | BQ87: =IF(ISNUMBER(P87),CONCATENATE(BI87+100,BJ87+100,BK87+100,BO87+100,BL87+100,BM87+100)+0,"") ->  | BR87: =IF(ISNUMBER(SMALL(BQ:BQ,ROW()-2)),SMALL(BQ:BQ,ROW()-2),"") ->  | BT87: 18 | BX87: 4 | CG87: =VLOOKUP(N87,AO:AP,2,FALSE) -> 
C88: =CONCATENATE(B89,"B") -> 29B | AC88: 42 | AG88: 11 | AJ88: 5 | AM88: 13 | AP88: 10 | AR88: =IF(ISNUMBER(SMALL(#REF!,ROW()-2)),SMALL(#REF!,ROW()-2),"") ->  | AS88: 1 | BB88: 16 | BF88: 17 | BT88: 18 | BX88: 4
B89: 29 | C89: =CONCATENATE(B89,"C") -> 29C | AC89: 42 | AG89: 11 | AJ89: 5 | AM89: 13 | AP89: 10 | AR89: =IF(ISNUMBER(SMALL(#REF!,ROW()-2)),SMALL(#REF!,ROW()-2),"") ->  | AS89: 1 | BB89: 16 | BF89: 17 | BT89: 18 | BX89: 4
C90: =CONCATENATE(B92,"A") -> 30A | O90: =IF(ISBLANK(N90),"",IF(N90=0,$CF$2,CG90)) ->  | P90: =IF(ISNUMBER(O90),IF(ISNUMBER(O90),IF(ISNUMBER(O90),O90+G90+G91+G92+I90+I91+I92+K90+K91+K92+M90+M91+M92,""),""),"") ->  | Q90: =IF(ISNUMBER(P90),VLOOKUP(BQ90,BS:BT,2,FALSE),"") ->  | AC90: 42 | AG90: 11 | AJ90: 5 | AM90: 13 | AP90: 10 | AR90: =IF(ISNUMBER(SMALL(#REF!,ROW()-2)),SMALL(#REF!,ROW()-2),"") ->  | AS90: 1 | AU90: =IF(#REF!,#REF!+0,) ->  | AX90: =IF(ISNUMBER(AU90),VLOOKUP(AU90,AV:AW,2,FALSE),"") ->  | AZ90: =P90 ->  | BB90: 16 | BC90: =IF(ISNUMBER(AZ90),VLOOKUP(AZ90,BA:BB,2,FALSE),"") ->  | BF90: 17 | BI90: =P90 ->  | BJ90: =SUM(G90,G91,G92) -> 0 | BK90: =SUM(I90,I91,I92) -> 0 | BL90: =SUM(M90,M91,M92) -> 0 | BM90: =O90 ->  | BN90: =#REF! ->  | BO90: =SUM(K90,K91,K92) -> 0 | BP90: =#REF! ->  | BQ90: =IF(ISNUMBER(P90),CONCATENATE(BI90+100,BJ90+100,BK90+100,BO90+100,BL90+100,BM90+100)+0,"") ->  | BR90: =IF(ISNUMBER(SMALL(BQ:BQ,ROW()-2)),SMALL(BQ:BQ,ROW()-2),"") ->  | BT90: 18 | BX90: 4 | CG90: =VLOOKUP(N90,AO:AP,2,FALSE) -> 
C91: =CONCATENATE(B92,"B") -> 30B | AC91: 42 | AG91: 11 | AJ91: 5 | AM91: 13 | AP91: 10 | AR91: =IF(ISNUMBER(SMALL(#REF!,ROW()-2)),SMALL(#REF!,ROW()-2),"") ->  | AS91: 1 | BB91: 16 | BF91: 17 | BT91: 18 | BX91: 4
B92: 30 | C92: =CONCATENATE(B92,"C") -> 30C | AC92: 42 | AG92: 11 | AJ92: 5 | AM92: 13 | AP92: 10 | AR92: =IF(ISNUMBER(SMALL(#REF!,ROW()-2)),SMALL(#REF!,ROW()-2),"") ->  | AS92: 1 | BB92: 16 | BF92: 17 | BT92: 18 | BX92: 4
C93: =CONCATENATE(B95,"A") -> 31A | O93: =IF(ISBLANK(N93),"",IF(N93=0,$CF$2,CG93)) ->  | P93: =IF(ISNUMBER(O93),IF(ISNUMBER(O93),IF(ISNUMBER(O93),O93+G93+G94+G95+I93+I94+I95+K93+K94+K95+M93+M94+M95,""),""),"") ->  | Q93: =IF(ISNUMBER(P93),VLOOKUP(BQ93,BS:BT,2,FALSE),"") ->  | AC93: 42 | AG93: 11 | AJ93: 5 | AM93: 13 | AP93: 10 | AR93: =IF(ISNUMBER(SMALL(#REF!,ROW()-2)),SMALL(#REF!,ROW()-2),"") ->  | AS93: 1 | AU93: =IF(#REF!,#REF!+0,) ->  | AX93: =IF(ISNUMBER(AU93),VLOOKUP(AU93,AV:AW,2,FALSE),"") ->  | AZ93: =P93 ->  | BB93: 16 | BC93: =IF(ISNUMBER(AZ93),VLOOKUP(AZ93,BA:BB,2,FALSE),"") ->  | BF93: 17 | BI93: =P93 ->  | BJ93: =SUM(G93,G94,G95) -> 0 | BK93: =SUM(I93,I94,I95) -> 0 | BL93: =SUM(M93,M94,M95) -> 0 | BM93: =O93 ->  | BN93: =#REF! ->  | BO93: =SUM(K93,K94,K95) -> 0 | BP93: =#REF! ->  | BQ93: =IF(ISNUMBER(P93),CONCATENATE(BI93+100,BJ93+100,BK93+100,BO93+100,BL93+100,BM93+100)+0,"") ->  | BR93: =IF(ISNUMBER(SMALL(BQ:BQ,ROW()-2)),SMALL(BQ:BQ,ROW()-2),"") ->  | BT93: 18 | BX93: 4 | CG93: =VLOOKUP(N93,AO:AP,2,FALSE) -> 
C94: =CONCATENATE(B95,"B") -> 31B | AC94: 42 | AG94: 11 | AJ94: 5 | AM94: 13 | AP94: 10 | AR94: =IF(ISNUMBER(SMALL(#REF!,ROW()-2)),SMALL(#REF!,ROW()-2),"") ->  | AS94: 1 | BB94: 16 | BF94: 17 | BT94: 18 | BX94: 4
B95: 31 | C95: =CONCATENATE(B95,"C") -> 31C | AC95: 42 | AG95: 11 | AJ95: 5 | AM95: 13 | AP95: 10 | AR95: =IF(ISNUMBER(SMALL(#REF!,ROW()-2)),SMALL(#REF!,ROW()-2),"") ->  | AS95: 1 | BB95: 16 | BF95: 17 | BT95: 18 | BX95: 4
C96: =CONCATENATE(B98,"A") -> 32A | O96: =IF(ISBLANK(N96),"",IF(N96=0,$CF$2,CG96)) ->  | P96: =IF(ISNUMBER(O96),IF(ISNUMBER(O96),IF(ISNUMBER(O96),O96+G96+G97+G98+I96+I97+I98+K96+K97+K98+M96+M97+M98,""),""),"") ->  | Q96: =IF(ISNUMBER(P96),VLOOKUP(BQ96,BS:BT,2,FALSE),"") ->  | AC96: 42 | AG96: 11 | AJ96: 5 | AM96: 13 | AP96: 10 | AR96: =IF(ISNUMBER(SMALL(#REF!,ROW()-2)),SMALL(#REF!,ROW()-2),"") ->  | AS96: 1 | AU96: =IF(#REF!,#REF!+0,) ->  | AX96: =IF(ISNUMBER(AU96),VLOOKUP(AU96,AV:AW,2,FALSE),"") ->  | AZ96: =P96 ->  | BB96: 16 | BC96: =IF(ISNUMBER(AZ96),VLOOKUP(AZ96,BA:BB,2,FALSE),"") ->  | BF96: 17 | BI96: =P96 ->  | BJ96: =SUM(G96,G97,G98) -> 0 | BK96: =SUM(I96,I97,I98) -> 0 | BL96: =SUM(M96,M97,M98) -> 0 | BM96: =O96 ->  | BN96: =#REF! ->  | BO96: =SUM(K96,K97,K98) -> 0 | BP96: =#REF! ->  | BQ96: =IF(ISNUMBER(P96),CONCATENATE(BI96+100,BJ96+100,BK96+100,BO96+100,BL96+100,BM96+100)+0,"") ->  | BR96: =IF(ISNUMBER(SMALL(BQ:BQ,ROW()-2)),SMALL(BQ:BQ,ROW()-2),"") ->  | BT96: 18 | BX96: 4 | CG96: =VLOOKUP(N96,AO:AP,2,FALSE) -> 
C97: =CONCATENATE(B98,"B") -> 32B | AC97: 42 | AG97: 11 | AJ97: 5 | AM97: 13 | AP97: 10 | AR97: =IF(ISNUMBER(SMALL(#REF!,ROW()-2)),SMALL(#REF!,ROW()-2),"") ->  | AS97: 1 | BB97: 16 | BF97: 17 | BT97: 18 | BX97: 4
B98: 32 | C98: =CONCATENATE(B98,"C") -> 32C | AC98: 42 | AG98: 11 | AJ98: 5 | AM98: 13 | AP98: 10 | AR98: =IF(ISNUMBER(SMALL(#REF!,ROW()-2)),SMALL(#REF!,ROW()-2),"") ->  | AS98: 1 | BB98: 16 | BF98: 17 | BT98: 18 | BX98: 4
C99: =CONCATENATE(B101,"A") -> 33A | G99: =IF(ISBLANK(F99),"",IF(F99=0,$CE$2,CF99)) ->  | M99: =IF(ISNUMBER(L99),VLOOKUP(L99,AL:AM,2,FALSE),"") ->  | O99: =IF(ISBLANK(N99),"",IF(N99=0,$CF$2,CG99)) ->  | P99: =IF(ISNUMBER(O99),IF(ISNUMBER(O99),IF(ISNUMBER(O99),O99+G99+G100+G101+I99+I100+I101+K99+K100+K101+M99+M100+M101,""),""),"") ->  | Q99: =IF(ISNUMBER(P99),VLOOKUP(BQ99,BS:BT,2,FALSE),"") ->  | AC99: 42 | AF99: =IF(ISNUMBER(LARGE(F:F,ROW()-2)),LARGE(F:F,ROW()-2),"") ->  | AG99: 11 | AI99: =IF(ISNUMBER(SMALL(J:J,ROW()-2)),SMALL(J:J,ROW()-2),"") ->  | AJ99: 5 | AL99: =IF(ISNUMBER(SMALL(L:L,ROW()-2)),SMALL(L:L,ROW()-2),"") ->  | AM99: 13 | AO99: =IF(ISNUMBER(LARGE(N:N,ROW()-2)),LARGE(N:N,ROW()-2),"") ->  | AP99: 10 | AR99: =IF(ISNUMBER(SMALL(#REF!,ROW()-2)),SMALL(#REF!,ROW()-2),"") ->  | AS99: 1 | AU99: =IF(#REF!,#REF!+0,) ->  | AV99: =IF(ISNUMBER(LARGE(AU:AU,ROW()-2)),LARGE(AU:AU,ROW()-2),"") ->  | AX99: =IF(ISNUMBER(AU99),VLOOKUP(AU99,AV:AW,2,FALSE),"") ->  | AZ99: =P99 ->  | BA99: =IF(ISNUMBER(SMALL(P:P,ROW()-2)),SMALL(P:P,ROW()-2),"") ->  | BB99: 16 | BC99: =IF(ISNUMBER(AZ99),VLOOKUP(AZ99,BA:BB,2,FALSE),"") ->  | BF99: 17 | BI99: =P99 ->  | BJ99: =SUM(G99,G100,G101) -> 0 | BK99: =SUM(I99,I100,I101) -> 0 | BL99: =SUM(M99,M100,M101) -> 0 | BM99: =O99 ->  | BN99: =#REF! ->  | BO99: =SUM(K99,K100,K101) -> 0 | BP99: =#REF! ->  | BQ99: =IF(ISNUMBER(P99),CONCATENATE(BI99+100,BJ99+100,BK99+100,BO99+100,BL99+100,BM99+100)+0,"") ->  | BR99: =IF(ISNUMBER(SMALL(BQ:BQ,ROW()-2)),SMALL(BQ:BQ,ROW()-2),"") ->  | BT99: 18 | BW99: =IF(ISNUMBER(LARGE(H:H,ROW()-2)),LARGE(H:H,ROW()-2),"") ->  | BX99: 4 | CG99: =VLOOKUP(N99,AO:AP,2,FALSE) -> 
C100: =CONCATENATE(B101,"B") -> 33B | AC100: 42 | AG100: =IF(AF99<>AF100,AG99+1,AG99) -> 11 | AJ100: 5 | AM100: 13 | AP100: 10 | AR100: =IF(ISNUMBER(SMALL(#REF!,ROW()-2)),SMALL(#REF!,ROW()-2),"") ->  | AS100: 1 | BB100: 16 | BF100: 17 | BT100: 18 | BX100: 4
B101: 33 | C101: =CONCATENATE(B101,"C") -> 33C | AC101: 42 | AG101: 11 | AJ101: 5 | AM101: 13 | AP101: 10 | AR101: =IF(ISNUMBER(SMALL(#REF!,ROW()-2)),SMALL(#REF!,ROW()-2),"") ->  | AS101: 1 | BB101: 16 | BF101: 17 | BT101: 18 | BX101: 4
C102: =CONCATENATE(B104,"A") -> 34A | O102: =IF(ISBLANK(N102),"",IF(N102=0,$CF$2,CG102)) ->  | P102: =IF(ISNUMBER(O102),IF(ISNUMBER(O102),IF(ISNUMBER(O102),O102+G102+G103+G104+I102+I103+I104+K102+K103+K104+M102+M103+M104,""),""),"") ->  | Q102: =IF(ISNUMBER(P102),VLOOKUP(BQ102,BS:BT,2,FALSE),"") ->  | AC102: 42 | AG102: 11 | AJ102: 5 | AM102: 13 | AP102: 10 | AR102: =IF(ISNUMBER(SMALL(#REF!,ROW()-2)),SMALL(#REF!,ROW()-2),"") ->  | AS102: 1 | AU102: =IF(#REF!,#REF!+0,) ->  | AX102: =IF(ISNUMBER(AU102),VLOOKUP(AU102,AV:AW,2,FALSE),"") ->  | AZ102: =P102 ->  | BB102: 16 | BC102: =IF(ISNUMBER(AZ102),VLOOKUP(AZ102,BA:BB,2,FALSE),"") ->  | BF102: 17 | BI102: =P102 ->  | BJ102: =SUM(G102,G103,G104) -> 0 | BK102: =SUM(I102,I103,I104) -> 0 | BL102: =SUM(M102,M103,M104) -> 0 | BM102: =O102 ->  | BN102: =#REF! ->  | BO102: =SUM(K102,K103,K104) -> 0 | BP102: =#REF! ->  | BQ102: =IF(ISNUMBER(P102),CONCATENATE(BI102+100,BJ102+100,BK102+100,BO102+100,BL102+100,BM102+100)+0,"") ->  | BR102: =IF(ISNUMBER(SMALL(BQ:BQ,ROW()-2)),SMALL(BQ:BQ,ROW()-2),"") ->  | BT102: 18 | BX102: 4 | CG102: =VLOOKUP(N102,AO:AP,2,FALSE) -> 
C103: =CONCATENATE(B104,"B") -> 34B | AC103: 42 | AG103: 11 | AJ103: 5 | AM103: 13 | AP103: 10 | AR103: =IF(ISNUMBER(SMALL(#REF!,ROW()-2)),SMALL(#REF!,ROW()-2),"") ->  | AS103: 1 | BB103: 16 | BF103: 17 | BT103: 18 | BX103: 4
B104: 34 | C104: =CONCATENATE(B104,"C") -> 34C | AC104: 42 | AG104: 11 | AJ104: 5 | AM104: 13 | AP104: 10 | AR104: =IF(ISNUMBER(SMALL(#REF!,ROW()-2)),SMALL(#REF!,ROW()-2),"") ->  | AS104: 1 | BB104: 16 | BF104: 17 | BT104: 18 | BX104: 4
C105: =CONCATENATE(B107,"A") -> 35A | O105: =IF(ISBLANK(N105),"",IF(N105=0,$CF$2,CG105)) ->  | P105: =IF(ISNUMBER(O105),IF(ISNUMBER(O105),IF(ISNUMBER(O105),O105+G105+G106+G107+I105+I106+I107+K105+K106+K107+M105+M106+M107,""),""),"") ->  | Q105: =IF(ISNUMBER(P105),VLOOKUP(BQ105,BS:BT,2,FALSE),"") ->  | AC105: 42 | AG105: 11 | AJ105: 5 | AM105: 13 | AP105: 10 | AR105: =IF(ISNUMBER(SMALL(#REF!,ROW()-2)),SMALL(#REF!,ROW()-2),"") ->  | AS105: 1 | AU105: =IF(#REF!,#REF!+0,) ->  | AX105: =IF(ISNUMBER(AU105),VLOOKUP(AU105,AV:AW,2,FALSE),"") ->  | AZ105: =P105 ->  | BB105: 16 | BC105: =IF(ISNUMBER(AZ105),VLOOKUP(AZ105,BA:BB,2,FALSE),"") ->  | BF105: 17 | BI105: =P105 ->  | BJ105: =SUM(G105,G106,G107) -> 0 | BK105: =SUM(I105,I106,I107) -> 0 | BL105: =SUM(M105,M106,M107) -> 0 | BM105: =O105 ->  | BN105: =#REF! ->  | BO105: =SUM(K105,K106,K107) -> 0 | BP105: =#REF! ->  | BQ105: =IF(ISNUMBER(P105),CONCATENATE(BI105+100,BJ105+100,BK105+100,BO105+100,BL105+100,BM105+100)+0,"") ->  | BR105: =IF(ISNUMBER(SMALL(BQ:BQ,ROW()-2)),SMALL(BQ:BQ,ROW()-2),"") ->  | BT105: 18 | BX105: 4 | CG105: =VLOOKUP(N105,AO:AP,2,FALSE) -> 
C106: =CONCATENATE(B107,"B") -> 35B | AC106: 42 | AG106: 11 | AJ106: 5 | AM106: 13 | AP106: 10 | AR106: =IF(ISNUMBER(SMALL(#REF!,ROW()-2)),SMALL(#REF!,ROW()-2),"") ->  | AS106: 1 | BB106: 16 | BF106: 17 | BT106: 18 | BX106: 4
B107: 35 | C107: =CONCATENATE(B107,"C") -> 35C | AC107: 42 | AG107: 11 | AJ107: 5 | AM107: 13 | AP107: 10 | AR107: =IF(ISNUMBER(SMALL(#REF!,ROW()-2)),SMALL(#REF!,ROW()-2),"") ->  | AS107: 1 | BB107: 16 | BF107: 17 | BT107: 18 | BX107: 4
C108: =CONCATENATE(B110,"A") -> 36A | O108: =IF(ISBLANK(N108),"",IF(N108=0,$CF$2,CG108)) ->  | P108: =IF(ISNUMBER(O108),IF(ISNUMBER(O108),IF(ISNUMBER(O108),O108+G108+G109+G110+I108+I109+I110+K108+K109+K110+M108+M109+M110,""),""),"") ->  | Q108: =IF(ISNUMBER(P108),VLOOKUP(BQ108,BS:BT,2,FALSE),"") ->  | AC108: 42 | AG108: 11 | AJ108: 5 | AM108: 13 | AP108: 10 | AR108: =IF(ISNUMBER(SMALL(#REF!,ROW()-2)),SMALL(#REF!,ROW()-2),"") ->  | AS108: 1 | AU108: =IF(#REF!,#REF!+0,) ->  | AX108: =IF(ISNUMBER(AU108),VLOOKUP(AU108,AV:AW,2,FALSE),"") ->  | AZ108: =P108 ->  | BB108: 16 | BC108: =IF(ISNUMBER(AZ108),VLOOKUP(AZ108,BA:BB,2,FALSE),"") ->  | BF108: 17 | BI108: =P108 ->  | BJ108: =SUM(G108,G109,G110) -> 0 | BK108: =SUM(I108,I109,I110) -> 0 | BL108: =SUM(M108,M109,M110) -> 0 | BM108: =O108 ->  | BN108: =#REF! ->  | BO108: =SUM(K108,K109,K110) -> 0 | BP108: =#REF! ->  | BQ108: =IF(ISNUMBER(P108),CONCATENATE(BI108+100,BJ108+100,BK108+100,BO108+100,BL108+100,BM108+100)+0,"") ->  | BR108: =IF(ISNUMBER(SMALL(BQ:BQ,ROW()-2)),SMALL(BQ:BQ,ROW()-2),"") ->  | BT108: 18 | BX108: 4 | CG108: =VLOOKUP(N108,AO:AP,2,FALSE) -> 
C109: =CONCATENATE(B110,"B") -> 36B | AC109: 42 | AG109: 11 | AJ109: 5 | AM109: 13 | AP109: 10 | AR109: =IF(ISNUMBER(SMALL(#REF!,ROW()-2)),SMALL(#REF!,ROW()-2),"") ->  | AS109: 1 | BB109: 16 | BF109: 17 | BT109: 18 | BX109: 4
B110: 36 | C110: =CONCATENATE(B110,"C") -> 36C | AC110: 42 | AG110: 11 | AJ110: 5 | AM110: 13 | AP110: 10 | AR110: =IF(ISNUMBER(SMALL(#REF!,ROW()-2)),SMALL(#REF!,ROW()-2),"") ->  | AS110: 1 | BB110: 16 | BF110: 17 | BT110: 18 | BX110: 4
C111: =CONCATENATE(B113,"A") -> 37A | O111: =IF(ISBLANK(N111),"",IF(N111=0,$CF$2,CG111)) ->  | P111: =IF(ISNUMBER(O111),IF(ISNUMBER(O111),IF(ISNUMBER(O111),O111+G111+G112+G113+I111+I112+I113+K111+K112+K113+M111+M112+M113,""),""),"") ->  | Q111: =IF(ISNUMBER(P111),VLOOKUP(BQ111,BS:BT,2,FALSE),"") ->  | AC111: 42 | AG111: 11 | AJ111: 5 | AM111: 13 | AP111: 10 | AR111: =IF(ISNUMBER(SMALL(#REF!,ROW()-2)),SMALL(#REF!,ROW()-2),"") ->  | AS111: 1 | AU111: =IF(#REF!,#REF!+0,) ->  | AX111: =IF(ISNUMBER(AU111),VLOOKUP(AU111,AV:AW,2,FALSE),"") ->  | AZ111: =P111 ->  | BB111: 16 | BC111: =IF(ISNUMBER(AZ111),VLOOKUP(AZ111,BA:BB,2,FALSE),"") ->  | BF111: 17 | BI111: =P111 ->  | BJ111: =SUM(G111,G112,G113) -> 0 | BK111: =SUM(I111,I112,I113) -> 0 | BL111: =SUM(M111,M112,M113) -> 0 | BM111: =O111 ->  | BN111: =#REF! ->  | BO111: =SUM(K111,K112,K113) -> 0 | BP111: =#REF! ->  | BQ111: =IF(ISNUMBER(P111),CONCATENATE(BI111+100,BJ111+100,BK111+100,BO111+100,BL111+100,BM111+100)+0,"") ->  | BR111: =IF(ISNUMBER(SMALL(BQ:BQ,ROW()-2)),SMALL(BQ:BQ,ROW()-2),"") ->  | BT111: 18 | BX111: 4 | CG111: =VLOOKUP(N111,AO:AP,2,FALSE) -> 
C112: =CONCATENATE(B113,"B") -> 37B | AC112: 42 | AG112: 11 | AJ112: 5 | AM112: 13 | AP112: 10 | AR112: =IF(ISNUMBER(SMALL(#REF!,ROW()-2)),SMALL(#REF!,ROW()-2),"") ->  | AS112: 1 | BB112: 16 | BF112: 17 | BT112: 18 | BX112: 4
B113: 37 | C113: =CONCATENATE(B113,"C") -> 37C | AC113: 42 | AG113: 11 | AJ113: 5 | AM113: 13 | AP113: 10 | AR113: =IF(ISNUMBER(SMALL(#REF!,ROW()-2)),SMALL(#REF!,ROW()-2),"") ->  | AS113: 1 | BB113: 16 | BF113: 17 | BT113: 18 | BX113: 4
C114: =CONCATENATE(B116,"A") -> 38A | O114: =IF(ISBLANK(N114),"",IF(N114=0,$CF$2,CG114)) ->  | P114: =IF(ISNUMBER(O114),IF(ISNUMBER(O114),IF(ISNUMBER(O114),O114+G114+G115+G116+I114+I115+I116+K114+K115+K116+M114+M115+M116,""),""),"") ->  | Q114: =IF(ISNUMBER(P114),VLOOKUP(BQ114,BS:BT,2,FALSE),"") ->  | AC114: 42 | AG114: 11 | AJ114: 5 | AM114: 13 | AP114: 10 | AR114: =IF(ISNUMBER(SMALL(#REF!,ROW()-2)),SMALL(#REF!,ROW()-2),"") ->  | AS114: 1 | AU114: =IF(#REF!,#REF!+0,) ->  | AX114: =IF(ISNUMBER(AU114),VLOOKUP(AU114,AV:AW,2,FALSE),"") ->  | AZ114: =P114 ->  | BB114: 16 | BC114: =IF(ISNUMBER(AZ114),VLOOKUP(AZ114,BA:BB,2,FALSE),"") ->  | BF114: 17 | BI114: =P114 ->  | BJ114: =SUM(G114,G115,G116) -> 0 | BK114: =SUM(I114,I115,I116) -> 0 | BL114: =SUM(M114,M115,M116) -> 0 | BM114: =O114 ->  | BN114: =#REF! ->  | BO114: =SUM(K114,K115,K116) -> 0 | BP114: =#REF! ->  | BQ114: =IF(ISNUMBER(P114),CONCATENATE(BI114+100,BJ114+100,BK114+100,BO114+100,BL114+100,BM114+100)+0,"") ->  | BR114: =IF(ISNUMBER(SMALL(BQ:BQ,ROW()-2)),SMALL(BQ:BQ,ROW()-2),"") ->  | BT114: 18 | BX114: 4 | CG114: =VLOOKUP(N114,AO:AP,2,FALSE) -> 
C115: =CONCATENATE(B116,"B") -> 38B | AC115: 42 | AG115: 11 | AJ115: 5 | AM115: 13 | AP115: 10 | AR115: =IF(ISNUMBER(SMALL(#REF!,ROW()-2)),SMALL(#REF!,ROW()-2),"") ->  | AS115: 1 | BB115: 16 | BF115: 17 | BT115: 18 | BX115: 4
B116: 38 | C116: =CONCATENATE(B116,"C") -> 38C | AC116: 42 | AG116: 11 | AJ116: 5 | AM116: 13 | AP116: 10 | AR116: =IF(ISNUMBER(SMALL(#REF!,ROW()-2)),SMALL(#REF!,ROW()-2),"") ->  | AS116: 1 | BB116: 16 | BF116: 17 | BT116: 18 | BX116: 4
C117: =CONCATENATE(B119,"A") -> 39A | O117: =IF(ISBLANK(N117),"",IF(N117=0,$CF$2,CG117)) ->  | P117: =IF(ISNUMBER(O117),IF(ISNUMBER(O117),IF(ISNUMBER(O117),O117+G117+G118+G119+I117+I118+I119+K117+K118+K119+M117+M118+M119,""),""),"") ->  | Q117: =IF(ISNUMBER(P117),VLOOKUP(BQ117,BS:BT,2,FALSE),"") ->  | AC117: 42 | AG117: 11 | AJ117: 5 | AM117: 13 | AP117: 10 | AR117: =IF(ISNUMBER(SMALL(#REF!,ROW()-2)),SMALL(#REF!,ROW()-2),"") ->  | AS117: 1 | AU117: =IF(#REF!,#REF!+0,) ->  | AX117: =IF(ISNUMBER(AU117),VLOOKUP(AU117,AV:AW,2,FALSE),"") ->  | AZ117: =P117 ->  | BB117: 16 | BC117: =IF(ISNUMBER(AZ117),VLOOKUP(AZ117,BA:BB,2,FALSE),"") ->  | BF117: 17 | BI117: =P117 ->  | BJ117: =SUM(G117,G118,G119) -> 0 | BK117: =SUM(I117,I118,I119) -> 0 | BL117: =SUM(M117,M118,M119) -> 0 | BM117: =O117 ->  | BN117: =#REF! ->  | BO117: =SUM(K117,K118,K119) -> 0 | BP117: =#REF! ->  | BQ117: =IF(ISNUMBER(P117),CONCATENATE(BI117+100,BJ117+100,BK117+100,BO117+100,BL117+100,BM117+100)+0,"") ->  | BR117: =IF(ISNUMBER(SMALL(BQ:BQ,ROW()-2)),SMALL(BQ:BQ,ROW()-2),"") ->  | BT117: 18 | BX117: 4 | CG117: =VLOOKUP(N117,AO:AP,2,FALSE) -> 
C118: =CONCATENATE(B119,"B") -> 39B | AC118: 42 | AG118: 11 | AJ118: 5 | AM118: 13 | AP118: 10 | AR118: =IF(ISNUMBER(SMALL(#REF!,ROW()-2)),SMALL(#REF!,ROW()-2),"") ->  | AS118: 1 | BB118: 16 | BF118: 17 | BT118: 18 | BX118: 4
B119: 39 | C119: =CONCATENATE(B119,"C") -> 39C | AC119: 42 | AG119: 11 | AJ119: 5 | AM119: 13 | AP119: 10 | AR119: =IF(ISNUMBER(SMALL(#REF!,ROW()-2)),SMALL(#REF!,ROW()-2),"") ->  | AS119: 1 | BB119: 16 | BF119: 17 | BT119: 18 | BX119: 4
C120: =CONCATENATE(B122,"A") -> 40A | O120: =IF(ISBLANK(N120),"",IF(N120=0,$CF$2,CG120)) ->  | P120: =IF(ISNUMBER(O120),IF(ISNUMBER(O120),IF(ISNUMBER(O120),O120+G120+G121+G122+I120+I121+I122+K120+K121+K122+M120+M121+M122,""),""),"") ->  | Q120: =IF(ISNUMBER(P120),VLOOKUP(BQ120,BS:BT,2,FALSE),"") ->  | AC120: 42 | AG120: 11 | AJ120: 5 | AM120: 13 | AP120: 10 | AR120: =IF(ISNUMBER(SMALL(#REF!,ROW()-2)),SMALL(#REF!,ROW()-2),"") ->  | AS120: 1 | AU120: =IF(#REF!,#REF!+0,) ->  | AX120: =IF(ISNUMBER(AU120),VLOOKUP(AU120,AV:AW,2,FALSE),"") ->  | AZ120: =P120 ->  | BB120: 16 | BC120: =IF(ISNUMBER(AZ120),VLOOKUP(AZ120,BA:BB,2,FALSE),"") ->  | BF120: 17 | BI120: =P120 ->  | BJ120: =SUM(G120,G121,G122) -> 0 | BK120: =SUM(I120,I121,I122) -> 0 | BL120: =SUM(M120,M121,M122) -> 0 | BM120: =O120 ->  | BN120: =#REF! ->  | BO120: =SUM(K120,K121,K122) -> 0 | BP120: =#REF! ->  | BQ120: =IF(ISNUMBER(P120),CONCATENATE(BI120+100,BJ120+100,BK120+100,BO120+100,BL120+100,BM120+100)+0,"") ->  | BR120: =IF(ISNUMBER(SMALL(BQ:BQ,ROW()-2)),SMALL(BQ:BQ,ROW()-2),"") ->  | BT120: 18 | BX120: 4 | CG120: =VLOOKUP(N120,AO:AP,2,FALSE) -> 
C121: =CONCATENATE(B122,"B") -> 40B | AC121: 42 | AG121: 11 | AJ121: 5 | AM121: 13 | AP121: 10 | AR121: =IF(ISNUMBER(SMALL(#REF!,ROW()-2)),SMALL(#REF!,ROW()-2),"") ->  | AS121: 1 | BB121: 16 | BF121: 17 | BT121: 18 | BX121: 4
B122: 40 | C122: =CONCATENATE(B122,"C") -> 40C | AC122: 42 | AG122: 11 | AJ122: 5 | AM122: 13 | AP122: 10 | AR122: =IF(ISNUMBER(SMALL(#REF!,ROW()-2)),SMALL(#REF!,ROW()-2),"") ->  | AS122: 1 | BB122: 16 | BF122: 17 | BT122: 18 | BX122: 4
C123: =CONCATENATE(B125,"A") -> 41A | O123: =IF(ISBLANK(N123),"",IF(N123=0,$CF$2,CG123)) ->  | P123: =IF(ISNUMBER(O123),IF(ISNUMBER(O123),IF(ISNUMBER(O123),O123+G123+G124+G125+I123+I124+I125+K123+K124+K125+M123+M124+M125,""),""),"") ->  | Q123: =IF(ISNUMBER(P123),VLOOKUP(BQ123,BS:BT,2,FALSE),"") ->  | AC123: 42 | AG123: 11 | AJ123: 5 | AM123: 13 | AP123: 10 | AR123: =IF(ISNUMBER(SMALL(#REF!,ROW()-2)),SMALL(#REF!,ROW()-2),"") ->  | AS123: 1 | AU123: =IF(#REF!,#REF!+0,) ->  | AX123: =IF(ISNUMBER(AU123),VLOOKUP(AU123,AV:AW,2,FALSE),"") ->  | AZ123: =P123 ->  | BB123: 16 | BC123: =IF(ISNUMBER(AZ123),VLOOKUP(AZ123,BA:BB,2,FALSE),"") ->  | BF123: 17 | BI123: =P123 ->  | BJ123: =SUM(G123,G124,G125) -> 0 | BK123: =SUM(I123,I124,I125) -> 0 | BL123: =SUM(M123,M124,M125) -> 0 | BM123: =O123 ->  | BN123: =#REF! ->  | BO123: =SUM(K123,K124,K125) -> 0 | BP123: =#REF! ->  | BQ123: =IF(ISNUMBER(P123),CONCATENATE(BI123+100,BJ123+100,BK123+100,BO123+100,BL123+100,BM123+100)+0,"") ->  | BR123: =IF(ISNUMBER(SMALL(BQ:BQ,ROW()-2)),SMALL(BQ:BQ,ROW()-2),"") ->  | BT123: 18 | BX123: 4 | CG123: =VLOOKUP(N123,AO:AP,2,FALSE) -> 
C124: =CONCATENATE(B125,"B") -> 41B | AC124: 42 | AG124: 11 | AJ124: 5 | AM124: 13 | AP124: 10 | AR124: =IF(ISNUMBER(SMALL(#REF!,ROW()-2)),SMALL(#REF!,ROW()-2),"") ->  | AS124: 1 | BB124: 16 | BF124: 17 | BT124: 18 | BX124: 4
B125: 41 | C125: =CONCATENATE(B125,"C") -> 41C | AC125: 42 | AG125: 11 | AJ125: 5 | AM125: 13 | AP125: 10 | AR125: =IF(ISNUMBER(SMALL(#REF!,ROW()-2)),SMALL(#REF!,ROW()-2),"") ->  | AS125: 1 | BB125: 16 | BF125: 17 | BT125: 18 | BX125: 4
C126: =CONCATENATE(B128,"A") -> 42A | O126: =IF(ISBLANK(N126),"",IF(N126=0,$CF$2,CG126)) ->  | P126: =IF(ISNUMBER(O126),IF(ISNUMBER(O126),IF(ISNUMBER(O126),O126+G126+G127+G128+I126+I127+I128+K126+K127+K128+M126+M127+M128,""),""),"") ->  | Q126: =IF(ISNUMBER(P126),VLOOKUP(BQ126,BS:BT,2,FALSE),"") ->  | AC126: 42 | AG126: 11 | AJ126: 5 | AM126: 13 | AP126: 10 | AR126: =IF(ISNUMBER(SMALL(#REF!,ROW()-2)),SMALL(#REF!,ROW()-2),"") ->  | AS126: 1 | AU126: =IF(#REF!,#REF!+0,) ->  | AX126: =IF(ISNUMBER(AU126),VLOOKUP(AU126,AV:AW,2,FALSE),"") ->  | AZ126: =P126 ->  | BB126: 16 | BC126: =IF(ISNUMBER(AZ126),VLOOKUP(AZ126,BA:BB,2,FALSE),"") ->  | BF126: 17 | BI126: =P126 ->  | BJ126: =SUM(G126,G127,G128) -> 0 | BK126: =SUM(I126,I127,I128) -> 0 | BL126: =SUM(M126,M127,M128) -> 0 | BM126: =O126 ->  | BN126: =#REF! ->  | BO126: =SUM(K126,K127,K128) -> 0 | BP126: =#REF! ->  | BQ126: =IF(ISNUMBER(P126),CONCATENATE(BI126+100,BJ126+100,BK126+100,BO126+100,BL126+100,BM126+100)+0,"") ->  | BR126: =IF(ISNUMBER(SMALL(BQ:BQ,ROW()-2)),SMALL(BQ:BQ,ROW()-2),"") ->  | BT126: 18 | BX126: 4 | CG126: =VLOOKUP(N126,AO:AP,2,FALSE) -> 
C127: =CONCATENATE(B128,"B") -> 42B | AC127: 42 | AG127: 11 | AJ127: 5 | AM127: 13 | AP127: 10 | AR127: =IF(ISNUMBER(SMALL(#REF!,ROW()-2)),SMALL(#REF!,ROW()-2),"") ->  | AS127: 1 | BB127: 16 | BF127: 17 | BT127: 18 | BX127: 4
B128: 42 | C128: =CONCATENATE(B128,"C") -> 42C | AC128: 42 | AG128: 11 | AJ128: 5 | AM128: 13 | AP128: 10 | AR128: =IF(ISNUMBER(SMALL(#REF!,ROW()-2)),SMALL(#REF!,ROW()-2),"") ->  | AS128: 1 | BB128: 16 | BF128: 17 | BT128: 18 | BX128: 4
C129: =CONCATENATE(B131,"A") -> 43A | O129: =IF(ISBLANK(N129),"",IF(N129=0,$CF$2,CG129)) ->  | P129: =IF(ISNUMBER(O129),IF(ISNUMBER(O129),IF(ISNUMBER(O129),O129+G129+G130+G131+I129+I130+I131+K129+K130+K131+M129+M130+M131,""),""),"") ->  | Q129: =IF(ISNUMBER(P129),VLOOKUP(BQ129,BS:BT,2,FALSE),"") ->  | AC129: 42 | AG129: 11 | AJ129: 5 | AM129: 13 | AP129: 10 | AR129: =IF(ISNUMBER(SMALL(#REF!,ROW()-2)),SMALL(#REF!,ROW()-2),"") ->  | AS129: 1 | AU129: =IF(#REF!,#REF!+0,) ->  | AX129: =IF(ISNUMBER(AU129),VLOOKUP(AU129,AV:AW,2,FALSE),"") ->  | AZ129: =P129 ->  | BB129: 16 | BC129: =IF(ISNUMBER(AZ129),VLOOKUP(AZ129,BA:BB,2,FALSE),"") ->  | BF129: 17 | BI129: =P129 ->  | BJ129: =SUM(G129,G130,G131) -> 0 | BK129: =SUM(I129,I130,I131) -> 0 | BL129: =SUM(M129,M130,M131) -> 0 | BM129: =O129 ->  | BN129: =#REF! ->  | BO129: =SUM(K129,K130,K131) -> 0 | BP129: =#REF! ->  | BQ129: =IF(ISNUMBER(P129),CONCATENATE(BI129+100,BJ129+100,BK129+100,BO129+100,BL129+100,BM129+100)+0,"") ->  | BR129: =IF(ISNUMBER(SMALL(BQ:BQ,ROW()-2)),SMALL(BQ:BQ,ROW()-2),"") ->  | BT129: 18 | BX129: 4 | CG129: =VLOOKUP(N129,AO:AP,2,FALSE) -> 
C130: =CONCATENATE(B131,"B") -> 43B | AC130: 42 | AG130: 11 | AJ130: 5 | AM130: 13 | AP130: 10 | AR130: =IF(ISNUMBER(SMALL(#REF!,ROW()-2)),SMALL(#REF!,ROW()-2),"") ->  | AS130: 1 | BB130: 16 | BF130: 17 | BT130: 18 | BX130: 4
B131: =IF(MOD(ROW(),3)=2,((ROW()+1)/3)-1,"") -> 43 | C131: =CONCATENATE(B131,"C") -> 43C | G131: =IF(ISBLANK(F131),"",IF(F131=0,$CE$2,CF131)) ->  | M131: =IF(ISNUMBER(L131),VLOOKUP(L131,AL:AM,2,FALSE),"") ->  | AC131: 42 | AF131: =IF(ISNUMBER(LARGE(F:F,ROW()-2)),LARGE(F:F,ROW()-2),"") ->  | AG131: 11 | AI131: =IF(ISNUMBER(SMALL(J:J,ROW()-2)),SMALL(J:J,ROW()-2),"") ->  | AJ131: 5 | AL131: =IF(ISNUMBER(SMALL(L:L,ROW()-2)),SMALL(L:L,ROW()-2),"") ->  | AM131: 13 | AO131: =IF(ISNUMBER(LARGE(N:N,ROW()-2)),LARGE(N:N,ROW()-2),"") ->  | AP131: 10 | AR131: =IF(ISNUMBER(SMALL(#REF!,ROW()-2)),SMALL(#REF!,ROW()-2),"") ->  | AS131: 1 | AV131: =IF(ISNUMBER(LARGE(AU:AU,ROW()-2)),LARGE(AU:AU,ROW()-2),"") ->  | BA131: =IF(ISNUMBER(SMALL(P:P,ROW()-2)),SMALL(P:P,ROW()-2),"") ->  | BB131: 16 | BF131: 17 | BT131: 18 | BW131: =IF(ISNUMBER(LARGE(H:H,ROW()-2)),LARGE(H:H,ROW()-2),"") ->  | BX131: 4
C132: =CONCATENATE(B134,"A") -> 44A | I132: =IF(ISBLANK(H132),"",IF(H132=0,$BY$2,BZ132)) ->  | K132: =IF(ISBLANK(J132),"",IF(J132=0,$CJ$2,CH132)) ->  | O132: =IF(ISBLANK(N132),"",IF(N132=0,$CF$2,CG132)) ->  | P132: =IF(ISNUMBER(O132),IF(ISNUMBER(O132),IF(ISNUMBER(O132),O132+G132+G133+G134+I132+I133+I134+K132+K133+K134+M132+M133+M134,""),""),"") ->  | Q132: =IF(ISNUMBER(P132),VLOOKUP(BQ132,BS:BT,2,FALSE),"") ->  | R132: =IF(ISNUMBER(G132),IF(ISNUMBER(K132),IF(ISNUMBER(M132),SUM(G132,I132,K132,M132),""),""),"") ->  | Z132: =I132 ->  | AA132: =IF(ISNUMBER(R132),CONCATENATE(R132+100,W132+100,Z132+100,X132+100,Y132+100)+0,"") ->  | AC132: 42 | AG132: =IF(AF131<>AF132,AG131+1,AG131) -> 11 | AJ132: 5 | AM132: 13 | AP132: 10 | AR132: =IF(ISNUMBER(SMALL(#REF!,ROW()-2)),SMALL(#REF!,ROW()-2),"") ->  | AS132: 1 | AU132: =IF(#REF!,#REF!+0,) ->  | AX132: =IF(ISNUMBER(AU132),VLOOKUP(AU132,AV:AW,2,FALSE),"") ->  | AZ132: =P132 ->  | BB132: =IF(BA131<>BA132,BB131+1,BB131) -> 16 | BC132: =IF(ISNUMBER(AZ132),VLOOKUP(AZ132,BA:BB,2,FALSE),"") ->  | BE132: =IF(ISNUMBER(SMALL(R:R,ROW()-2)),SMALL(R:R,ROW()-2),"") ->  | BF132: =IF(BE131<>BE132,BF131+1,BF131) -> 17 | BI132: =P132 ->  | BJ132: =SUM(G132,G133,G134) -> 0 | BK132: =SUM(I132,I133,I134) -> 0 | BL132: =SUM(M132,M133,M134) -> 0 | BM132: =O132 ->  | BN132: =#REF! ->  | BO132: =SUM(K132,K133,K134) -> 0 | BP132: =#REF! ->  | BQ132: =IF(ISNUMBER(P132),CONCATENATE(BI132+100,BJ132+100,BK132+100,BO132+100,BL132+100,BM132+100)+0,"") ->  | BR132: =IF(ISNUMBER(SMALL(BQ:BQ,ROW()-2)),SMALL(BQ:BQ,ROW()-2),"") ->  | BS132: =IF(ISNUMBER(SMALL(BQ:BQ,ROW()-2)),SMALL(BQ:BQ,ROW()-2),"") ->  | BT132: =IF(BS131<>BS132,BT131+1,BT131) -> 18 | BX132: =IF(BW131<>BW132,BX131+1,BX131) -> 4 | BZ132: =VLOOKUP(H132,BW:BX,2,FALSE) ->  | CF132: =VLOOKUP(F132,AF:AG,2,FALSE) ->  | CG132: =VLOOKUP(N132,AO:AP,2,FALSE) ->  | CH132: =IF(ISNUMBER(J132),VLOOKUP(J132,AI:AJ,2,FALSE),"") -> 
C133: =CONCATENATE(B134,"B") -> 44B | W133: =G133 ->  | X133: =K133 ->  | Y133: =M133 ->  | AB133: =IF(ISNUMBER(SMALL(AA:AA,ROW()-2)),SMALL(AA:AA,ROW()-2),"") ->  | AC133: =IF(AB132<>AB133,AC132+1,AC132) -> 42 | AG133: 11 | AJ133: =IF(AI132<>AI133,AJ132+1,AJ132) -> 5 | AM133: =IF(AL132<>AL133,AM132+1,AM132) -> 13 | AP133: =IF(AO132<>AO133,AP132+1,AP132) -> 10 | AR133: =IF(ISNUMBER(SMALL(#REF!,ROW()-2)),SMALL(#REF!,ROW()-2),"") ->  | AS133: =IF(AR132<>AR133,AS132+1,AS132) -> 1 | BB133: 16 | BF133: 17 | BT133: 18 | BX133: 4
B134: 44 | C134: =CONCATENATE(B134,"C") -> 44C | AC134: 42 | AG134: 11 | AJ134: 5 | AM134: 13 | AP134: 10 | AR134: =IF(ISNUMBER(SMALL(#REF!,ROW()-2)),SMALL(#REF!,ROW()-2),"") ->  | AS134: 1 | BB134: 16 | BF134: 17 | BT134: 18 | BX134: 4
C135: =CONCATENATE(B137,"A") -> 45A | O135: =IF(ISBLANK(N135),"",IF(N135=0,$CF$2,CG135)) ->  | P135: =IF(ISNUMBER(O135),IF(ISNUMBER(O135),IF(ISNUMBER(O135),O135+G135+G136+G137+I135+I136+I137+K135+K136+K137+M135+M136+M137,""),""),"") ->  | Q135: =IF(ISNUMBER(P135),VLOOKUP(BQ135,BS:BT,2,FALSE),"") ->  | AC135: 42 | AG135: 11 | AJ135: 5 | AM135: 13 | AP135: 10 | AR135: =IF(ISNUMBER(SMALL(#REF!,ROW()-2)),SMALL(#REF!,ROW()-2),"") ->  | AS135: 1 | AU135: =IF(#REF!,#REF!+0,) ->  | AX135: =IF(ISNUMBER(AU135),VLOOKUP(AU135,AV:AW,2,FALSE),"") ->  | AZ135: =P135 ->  | BB135: 16 | BC135: =IF(ISNUMBER(AZ135),VLOOKUP(AZ135,BA:BB,2,FALSE),"") ->  | BF135: 17 | BI135: =P135 ->  | BJ135: =SUM(G135,G136,G137) -> 0 | BK135: =SUM(I135,I136,I137) -> 0 | BL135: =SUM(M135,M136,M137) -> 0 | BM135: =O135 ->  | BN135: =#REF! ->  | BO135: =SUM(K135,K136,K137) -> 0 | BP135: =#REF! ->  | BQ135: =IF(ISNUMBER(P135),CONCATENATE(BI135+100,BJ135+100,BK135+100,BO135+100,BL135+100,BM135+100)+0,"") ->  | BR135: =IF(ISNUMBER(SMALL(BQ:BQ,ROW()-2)),SMALL(BQ:BQ,ROW()-2),"") ->  | BT135: 18 | BX135: 4 | CG135: =VLOOKUP(N135,AO:AP,2,FALSE) -> 
C136: =CONCATENATE(B137,"B") -> 45B | AC136: 42 | AG136: 11 | AJ136: 5 | AM136: 13 | AP136: 10 | AR136: =IF(ISNUMBER(SMALL(#REF!,ROW()-2)),SMALL(#REF!,ROW()-2),"") ->  | AS136: 1 | BB136: 16 | BF136: 17 | BT136: 18 | BX136: 4
B137: 45 | C137: =CONCATENATE(B137,"C") -> 45C | S137: =IF(ISNUMBER(R137),VLOOKUP(AA137,AB:AC,2,FALSE),"") ->  | AC137: 42 | AG137: 11 | AJ137: 5 | AM137: 13 | AP137: 10 | AR137: =IF(ISNUMBER(SMALL(#REF!,ROW()-2)),SMALL(#REF!,ROW()-2),"") ->  | AS137: 1 | BB137: 16 | BF137: 17 | BT137: 18 | BX137: 4
C138: =CONCATENATE(B140,"A") -> 46A | O138: =IF(ISBLANK(N138),"",IF(N138=0,$CF$2,CG138)) ->  | P138: =IF(ISNUMBER(O138),IF(ISNUMBER(O138),IF(ISNUMBER(O138),O138+G138+G139+G140+I138+I139+I140+K138+K139+K140+M138+M139+M140,""),""),"") ->  | Q138: =IF(ISNUMBER(P138),VLOOKUP(BQ138,BS:BT,2,FALSE),"") ->  | AC138: 42 | AG138: 11 | AJ138: 5 | AM138: 13 | AP138: 10 | AR138: =IF(ISNUMBER(SMALL(#REF!,ROW()-2)),SMALL(#REF!,ROW()-2),"") ->  | AS138: 1 | AU138: =IF(#REF!,#REF!+0,) ->  | AX138: =IF(ISNUMBER(AU138),VLOOKUP(AU138,AV:AW,2,FALSE),"") ->  | AZ138: =P138 ->  | BB138: 16 | BC138: =IF(ISNUMBER(AZ138),VLOOKUP(AZ138,BA:BB,2,FALSE),"") ->  | BF138: 17 | BI138: =P138 ->  | BJ138: =SUM(G138,G139,G140) -> 0 | BK138: =SUM(I138,I139,I140) -> 0 | BL138: =SUM(M138,M139,M140) -> 0 | BM138: =O138 ->  | BN138: =#REF! ->  | BO138: =SUM(K138,K139,K140) -> 0 | BP138: =#REF! ->  | BQ138: =IF(ISNUMBER(P138),CONCATENATE(BI138+100,BJ138+100,BK138+100,BO138+100,BL138+100,BM138+100)+0,"") ->  | BR138: =IF(ISNUMBER(SMALL(BQ:BQ,ROW()-2)),SMALL(BQ:BQ,ROW()-2),"") ->  | BT138: 18 | BX138: 4 | CG138: =VLOOKUP(N138,AO:AP,2,FALSE) -> 
C139: =CONCATENATE(B140,"B") -> 46B | AC139: 42 | AG139: 11 | AJ139: 5 | AM139: 13 | AP139: 10 | AR139: =IF(ISNUMBER(SMALL(#REF!,ROW()-2)),SMALL(#REF!,ROW()-2),"") ->  | AS139: 1 | BB139: 16 | BF139: 17 | BT139: 18 | BX139: 4
B140: 46 | C140: =CONCATENATE(B140,"C") -> 46C | AC140: 42 | AG140: 11 | AJ140: 5 | AM140: 13 | AP140: 10 | AR140: =IF(ISNUMBER(SMALL(#REF!,ROW()-2)),SMALL(#REF!,ROW()-2),"") ->  | AS140: 1 | BB140: 16 | BF140: 17 | BT140: 18 | BX140: 4
C141: =CONCATENATE(B143,"A") -> 47A | O141: =IF(ISBLANK(N141),"",IF(N141=0,$CF$2,CG141)) ->  | P141: =IF(ISNUMBER(O141),IF(ISNUMBER(O141),IF(ISNUMBER(O141),O141+G141+G142+G143+I141+I142+I143+K141+K142+K143+M141+M142+M143,""),""),"") ->  | Q141: =IF(ISNUMBER(P141),VLOOKUP(BQ141,BS:BT,2,FALSE),"") ->  | AC141: 42 | AG141: 11 | AJ141: 5 | AM141: 13 | AP141: 10 | AR141: =IF(ISNUMBER(SMALL(#REF!,ROW()-2)),SMALL(#REF!,ROW()-2),"") ->  | AS141: 1 | AU141: =IF(#REF!,#REF!+0,) ->  | AX141: =IF(ISNUMBER(AU141),VLOOKUP(AU141,AV:AW,2,FALSE),"") ->  | AZ141: =P141 ->  | BB141: 16 | BC141: =IF(ISNUMBER(AZ141),VLOOKUP(AZ141,BA:BB,2,FALSE),"") ->  | BF141: 17 | BI141: =P141 ->  | BJ141: =SUM(G141,G142,G143) -> 0 | BK141: =SUM(I141,I142,I143) -> 0 | BL141: =SUM(M141,M142,M143) -> 0 | BM141: =O141 ->  | BN141: =#REF! ->  | BO141: =SUM(K141,K142,K143) -> 0 | BP141: =#REF! ->  | BQ141: =IF(ISNUMBER(P141),CONCATENATE(BI141+100,BJ141+100,BK141+100,BO141+100,BL141+100,BM141+100)+0,"") ->  | BR141: =IF(ISNUMBER(SMALL(BQ:BQ,ROW()-2)),SMALL(BQ:BQ,ROW()-2),"") ->  | BT141: 18 | BX141: 4 | CG141: =VLOOKUP(N141,AO:AP,2,FALSE) -> 
C142: =CONCATENATE(B143,"B") -> 47B | AC142: 42 | AG142: 11 | AJ142: 5 | AM142: 13 | AP142: 10 | AR142: =IF(ISNUMBER(SMALL(#REF!,ROW()-2)),SMALL(#REF!,ROW()-2),"") ->  | AS142: 1 | BB142: 16 | BF142: 17 | BT142: 18 | BX142: 4
B143: 47 | C143: =CONCATENATE(B143,"C") -> 47C | AC143: 42 | AG143: 11 | AJ143: 5 | AM143: 13 | AP143: 10 | AR143: =IF(ISNUMBER(SMALL(#REF!,ROW()-2)),SMALL(#REF!,ROW()-2),"") ->  | AS143: 1 | BB143: 16 | BF143: 17 | BT143: 18 | BX143: 4
C144: =CONCATENATE(B146,"A") -> 48A | O144: =IF(ISBLANK(N144),"",IF(N144=0,$CF$2,CG144)) ->  | P144: =IF(ISNUMBER(O144),IF(ISNUMBER(O144),IF(ISNUMBER(O144),O144+G144+G145+G146+I144+I145+I146+K144+K145+K146+M144+M145+M146,""),""),"") ->  | Q144: =IF(ISNUMBER(P144),VLOOKUP(BQ144,BS:BT,2,FALSE),"") ->  | AC144: 42 | AG144: 11 | AJ144: 5 | AM144: 13 | AP144: 10 | AR144: =IF(ISNUMBER(SMALL(#REF!,ROW()-2)),SMALL(#REF!,ROW()-2),"") ->  | AS144: 1 | AU144: =IF(#REF!,#REF!+0,) ->  | AX144: =IF(ISNUMBER(AU144),VLOOKUP(AU144,AV:AW,2,FALSE),"") ->  | AZ144: =P144 ->  | BB144: 16 | BC144: =IF(ISNUMBER(AZ144),VLOOKUP(AZ144,BA:BB,2,FALSE),"") ->  | BF144: 17 | BI144: =P144 ->  | BJ144: =SUM(G144,G145,G146) -> 0 | BK144: =SUM(I144,I145,I146) -> 0 | BL144: =SUM(M144,M145,M146) -> 0 | BM144: =O144 ->  | BN144: =#REF! ->  | BO144: =SUM(K144,K145,K146) -> 0 | BP144: =#REF! ->  | BQ144: =IF(ISNUMBER(P144),CONCATENATE(BI144+100,BJ144+100,BK144+100,BO144+100,BL144+100,BM144+100)+0,"") ->  | BR144: =IF(ISNUMBER(SMALL(BQ:BQ,ROW()-2)),SMALL(BQ:BQ,ROW()-2),"") ->  | BT144: 18 | BX144: 4 | CG144: =VLOOKUP(N144,AO:AP,2,FALSE) -> 
C145: =CONCATENATE(B146,"B") -> 48B | AC145: 42 | AG145: 11 | AJ145: 5 | AM145: 13 | AP145: 10 | AR145: =IF(ISNUMBER(SMALL(#REF!,ROW()-2)),SMALL(#REF!,ROW()-2),"") ->  | AS145: 1 | BB145: 16 | BF145: 17 | BT145: 18 | BX145: 4
B146: 48 | C146: =CONCATENATE(B146,"C") -> 48C | AC146: 42 | AG146: 11 | AJ146: 5 | AM146: 13 | AP146: 10 | AR146: =IF(ISNUMBER(SMALL(#REF!,ROW()-2)),SMALL(#REF!,ROW()-2),"") ->  | AS146: 1 | BB146: 16 | BF146: 17 | BT146: 18 | BX146: 4
C147: =CONCATENATE(B149,"A") -> 49A | O147: =IF(ISBLANK(N147),"",IF(N147=0,$CF$2,CG147)) ->  | P147: =IF(ISNUMBER(O147),IF(ISNUMBER(O147),IF(ISNUMBER(O147),O147+G147+G148+G149+I147+I148+I149+K147+K148+K149+M147+M148+M149,""),""),"") ->  | Q147: =IF(ISNUMBER(P147),VLOOKUP(BQ147,BS:BT,2,FALSE),"") ->  | AC147: 42 | AG147: 11 | AJ147: 5 | AM147: 13 | AP147: 10 | AR147: =IF(ISNUMBER(SMALL(#REF!,ROW()-2)),SMALL(#REF!,ROW()-2),"") ->  | AS147: 1 | AU147: =IF(#REF!,#REF!+0,) ->  | AX147: =IF(ISNUMBER(AU147),VLOOKUP(AU147,AV:AW,2,FALSE),"") ->  | AZ147: =P147 ->  | BB147: 16 | BC147: =IF(ISNUMBER(AZ147),VLOOKUP(AZ147,BA:BB,2,FALSE),"") ->  | BF147: 17 | BI147: =P147 ->  | BJ147: =SUM(G147,G148,G149) -> 0 | BK147: =SUM(I147,I148,I149) -> 0 | BL147: =SUM(M147,M148,M149) -> 0 | BM147: =O147 ->  | BN147: =#REF! ->  | BO147: =SUM(K147,K148,K149) -> 0 | BP147: =#REF! ->  | BQ147: =IF(ISNUMBER(P147),CONCATENATE(BI147+100,BJ147+100,BK147+100,BO147+100,BL147+100,BM147+100)+0,"") ->  | BR147: =IF(ISNUMBER(SMALL(BQ:BQ,ROW()-2)),SMALL(BQ:BQ,ROW()-2),"") ->  | BT147: 18 | BX147: 4 | CG147: =VLOOKUP(N147,AO:AP,2,FALSE) -> 
C148: =CONCATENATE(B149,"B") -> 49B | AC148: 42 | AG148: 11 | AJ148: 5 | AM148: 13 | AP148: 10 | AR148: =IF(ISNUMBER(SMALL(#REF!,ROW()-2)),SMALL(#REF!,ROW()-2),"") ->  | AS148: 1 | BB148: 16 | BF148: 17 | BT148: 18 | BX148: 4
B149: 49 | C149: =CONCATENATE(B149,"C") -> 49C | AC149: 42 | AG149: 11 | AJ149: 5 | AM149: 13 | AP149: 10 | AR149: =IF(ISNUMBER(SMALL(#REF!,ROW()-2)),SMALL(#REF!,ROW()-2),"") ->  | AS149: 1 | BB149: 16 | BF149: 17 | BT149: 18 | BX149: 4
C150: =CONCATENATE(B152,"A") -> 50A | O150: =IF(ISBLANK(N150),"",IF(N150=0,$CF$2,CG150)) ->  | P150: =IF(ISNUMBER(O150),IF(ISNUMBER(O150),IF(ISNUMBER(O150),O150+G150+G151+G152+I150+I151+I152+K150+K151+K152+M150+M151+M152,""),""),"") ->  | Q150: =IF(ISNUMBER(P150),VLOOKUP(BQ150,BS:BT,2,FALSE),"") ->  | AC150: 42 | AG150: 11 | AJ150: 5 | AM150: 13 | AP150: 10 | AR150: =IF(ISNUMBER(SMALL(#REF!,ROW()-2)),SMALL(#REF!,ROW()-2),"") ->  | AS150: 1 | AU150: =IF(#REF!,#REF!+0,) ->  | AX150: =IF(ISNUMBER(AU150),VLOOKUP(AU150,AV:AW,2,FALSE),"") ->  | AZ150: =P150 ->  | BB150: 16 | BC150: =IF(ISNUMBER(AZ150),VLOOKUP(AZ150,BA:BB,2,FALSE),"") ->  | BF150: 17 | BI150: =P150 ->  | BJ150: =SUM(G150,G151,G152) -> 0 | BK150: =SUM(I150,I151,I152) -> 0 | BL150: =SUM(M150,M151,M152) -> 0 | BM150: =O150 ->  | BN150: =#REF! ->  | BO150: =SUM(K150,K151,K152) -> 0 | BP150: =#REF! ->  | BQ150: =IF(ISNUMBER(P150),CONCATENATE(BI150+100,BJ150+100,BK150+100,BO150+100,BL150+100,BM150+100)+0,"") ->  | BR150: =IF(ISNUMBER(SMALL(BQ:BQ,ROW()-2)),SMALL(BQ:BQ,ROW()-2),"") ->  | BT150: 18 | BX150: 4 | CG150: =VLOOKUP(N150,AO:AP,2,FALSE) -> 
C151: =CONCATENATE(B152,"B") -> 50B | AC151: 42 | AG151: 11 | AJ151: 5 | AM151: 13 | AP151: 10 | AR151: =IF(ISNUMBER(SMALL(#REF!,ROW()-2)),SMALL(#REF!,ROW()-2),"") ->  | AS151: 1 | BB151: 16 | BF151: 17 | BT151: 18 | BX151: 4
B152: 50 | C152: =CONCATENATE(B152,"C") -> 50C | AC152: 42 | AG152: 11 | AJ152: 5 | AM152: 13 | AP152: 10 | AR152: =IF(ISNUMBER(SMALL(#REF!,ROW()-2)),SMALL(#REF!,ROW()-2),"") ->  | AS152: 1 | BB152: 16 | BF152: 17 | BT152: 18 | BX152: 4
C153: =CONCATENATE(B155,"A") -> 51A | O153: =IF(ISBLANK(N153),"",IF(N153=0,$CF$2,CG153)) ->  | P153: =IF(ISNUMBER(O153),IF(ISNUMBER(O153),IF(ISNUMBER(O153),O153+G153+G154+G155+I153+I154+I155+K153+K154+K155+M153+M154+M155,""),""),"") ->  | Q153: =IF(ISNUMBER(P153),VLOOKUP(BQ153,BS:BT,2,FALSE),"") ->  | AC153: 42 | AG153: 11 | AJ153: 5 | AM153: 13 | AP153: 10 | AR153: =IF(ISNUMBER(SMALL(#REF!,ROW()-2)),SMALL(#REF!,ROW()-2),"") ->  | AS153: 1 | AU153: =IF(#REF!,#REF!+0,) ->  | AX153: =IF(ISNUMBER(AU153),VLOOKUP(AU153,AV:AW,2,FALSE),"") ->  | AZ153: =P153 ->  | BB153: 16 | BC153: =IF(ISNUMBER(AZ153),VLOOKUP(AZ153,BA:BB,2,FALSE),"") ->  | BF153: 17 | BI153: =P153 ->  | BJ153: =SUM(G153,G154,G155) -> 0 | BK153: =SUM(I153,I154,I155) -> 0 | BL153: =SUM(M153,M154,M155) -> 0 | BM153: =O153 ->  | BN153: =#REF! ->  | BO153: =SUM(K153,K154,K155) -> 0 | BP153: =#REF! ->  | BQ153: =IF(ISNUMBER(P153),CONCATENATE(BI153+100,BJ153+100,BK153+100,BO153+100,BL153+100,BM153+100)+0,"") ->  | BR153: =IF(ISNUMBER(SMALL(BQ:BQ,ROW()-2)),SMALL(BQ:BQ,ROW()-2),"") ->  | BT153: 18 | BX153: 4 | CG153: =VLOOKUP(N153,AO:AP,2,FALSE) -> 
C154: =CONCATENATE(B155,"B") -> 51B | AC154: 42 | AG154: 11 | AJ154: 5 | AM154: 13 | AP154: 10 | AR154: =IF(ISNUMBER(SMALL(#REF!,ROW()-2)),SMALL(#REF!,ROW()-2),"") ->  | AS154: 1 | BB154: 16 | BF154: 17 | BT154: 18 | BX154: 4
B155: 51 | C155: =CONCATENATE(B155,"C") -> 51C | AC155: 42 | AG155: 11 | AJ155: 5 | AM155: 13 | AP155: 10 | AR155: =IF(ISNUMBER(SMALL(#REF!,ROW()-2)),SMALL(#REF!,ROW()-2),"") ->  | AS155: 1 | BB155: 16 | BF155: 17 | BT155: 18 | BX155: 4
C156: =CONCATENATE(B158,"A") -> 52A | O156: =IF(ISBLANK(N156),"",IF(N156=0,$CF$2,CG156)) ->  | P156: =IF(ISNUMBER(O156),IF(ISNUMBER(O156),IF(ISNUMBER(O156),O156+G156+G157+G158+I156+I157+I158+K156+K157+K158+M156+M157+M158,""),""),"") ->  | Q156: =IF(ISNUMBER(P156),VLOOKUP(BQ156,BS:BT,2,FALSE),"") ->  | AC156: 42 | AG156: 11 | AJ156: 5 | AM156: 13 | AP156: 10 | AR156: =IF(ISNUMBER(SMALL(#REF!,ROW()-2)),SMALL(#REF!,ROW()-2),"") ->  | AS156: 1 | AU156: =IF(#REF!,#REF!+0,) ->  | AX156: =IF(ISNUMBER(AU156),VLOOKUP(AU156,AV:AW,2,FALSE),"") ->  | AZ156: =P156 ->  | BB156: 16 | BC156: =IF(ISNUMBER(AZ156),VLOOKUP(AZ156,BA:BB,2,FALSE),"") ->  | BF156: 17 | BI156: =P156 ->  | BJ156: =SUM(G156,G157,G158) -> 0 | BK156: =SUM(I156,I157,I158) -> 0 | BL156: =SUM(M156,M157,M158) -> 0 | BM156: =O156 ->  | BN156: =#REF! ->  | BO156: =SUM(K156,K157,K158) -> 0 | BP156: =#REF! ->  | BQ156: =IF(ISNUMBER(P156),CONCATENATE(BI156+100,BJ156+100,BK156+100,BO156+100,BL156+100,BM156+100)+0,"") ->  | BR156: =IF(ISNUMBER(SMALL(BQ:BQ,ROW()-2)),SMALL(BQ:BQ,ROW()-2),"") ->  | BT156: 18 | BX156: 4 | CG156: =VLOOKUP(N156,AO:AP,2,FALSE) -> 
C157: =CONCATENATE(B158,"B") -> 52B | AC157: 42 | AG157: 11 | AJ157: 5 | AM157: 13 | AP157: 10 | AR157: =IF(ISNUMBER(SMALL(#REF!,ROW()-2)),SMALL(#REF!,ROW()-2),"") ->  | AS157: 1 | BB157: 16 | BF157: 17 | BT157: 18 | BX157: 4
B158: 52 | C158: =CONCATENATE(B158,"C") -> 52C | AC158: 42 | AG158: 11 | AJ158: 5 | AM158: 13 | AP158: 10 | AR158: =IF(ISNUMBER(SMALL(#REF!,ROW()-2)),SMALL(#REF!,ROW()-2),"") ->  | AS158: 1 | BB158: 16 | BF158: 17 | BT158: 18 | BX158: 4
C159: =CONCATENATE(B161,"A") -> A | AG159: 11 | AJ159: 5 | AM159: 13 | AP159: 10 | AS159: 1 | BB159: 16 | BX159: 4
C160: #

Sheet Sortowanie wyników
M3: =IF(ISBLANK(P3),"",O3) ->  | N3: 1
N4: 2
N5: 3
N6: 4
N7: 5
N8: 6
N9: 7
N10: 8
N11: 9
N12: 10
N13: 11
N14: 12
N15: 13
N16: 14
N17: 15
N18: 16
N19: 17
N20: 18
N21: 19
N22: 20
N23: 21
N24: 22
N25: 23
N26: 24
N27: 25
N28: 26
N29: 27
N30: 28
N31: 29
N32: 30
N33: 31
N34: 32
M35: =IF(ISBLANK(P35),"",O35) ->  | N35: 33
N36: 34
N37: 35
N38: 36
N39: 37
N40: 38
N41: 39
N42: 40
N43: 41
N44: 42
N45: 43
N46: 44
N47: 45
N48: 46
N49: 47
N50: 48
N51: 49
N52: 50
N53: 51
N54: 52
N55: 53
N56: 54
N57: 55
N58: 56
N59: 57
N60: 58
N61: 59
N62: 60
N63: 61
N64: 62
N65: 63
N66: 64
M67: =IF(ISBLANK(P67),"",O67) ->  | N67: 65
N68: 66
N69: 67
N70: 68
N71: 69
N72: 70
N73: 71
N74: 72
N75: 73
N76: 74
N77: 75
N78: 76
N79: 77
N80: 78
N81: 79
N82: 80
N83: 81
N84: 82
N85: 83
N86: 84
N87: 85
N88: 86
N89: 87
N90: 88
N91: 89
N92: 90
N93: 91
N94: 92
N95: 93
N96: 94
N97: 95
N98: 96
M99: =IF(ISBLANK(P99),"",O99) ->  | N99: 97
N100: 98
N101: 99
N102: 100
N103: 101
N104: 102
N105: 103
N106: 104
N107: 105
N108: 106
N109: 107
N110: 108
N111: 109
N112: 110
N113: 111
N114: 112
N115: 113
N116: 114
N117: 115
N118: 116
N119: 117
N120: 118
N121: 119
N122: 120
N123: 121
N124: 122
N125: 123
N126: 124
N127: 125
N128: 126
N129: 127
N130: 128
M131: =IF(ISBLANK(P131),"",O131) ->  | N131: 129
N132: 130
N133: 131
N134: 132
N135: 133
N136: 134
N137: 135
N138: 136
N139: 137
N140: 138
N141: 139
N142: 140
N143: 141
N144: 142
N145: 143
N146: 144
N147: 145
N148: 146
N149: 147
N150: 148
N151: 149
N152: 150
N153: 151
N154: 152
N155: 153
N156: 154
N157: 155
N158: 156
N159: 157
N160: 158
N161: 159
N162: 160
